Cogmind - Beta 13 @@@ ROGUE MODE // 2024.03.03 @ 11:33:17 Player: Dosh Result: Destroyed by C-40 Crusher with Compactor Performance ------------- Evolutions (6) 3000 Regions Visited (32) 6400 Robots Destroyed (390) 1950 Value Destroyed (10871) 10871 Prototype IDs (110) 2200 Alien Tech Used (0) 0 Bonus (2192) 2192 TOTAL SCORE: 26613 Bonus ------- High Alert Combat Kills 381 Follower Combat Kills 1070 Entered Garrisons 200 Network Hubs Disabled 600 Aligned with FarCom 300 Acquired ECA 300 Met Warlord at Base 500 MAIN.C Attacked Warlord 500 Friendly Fire -1659 Cogmind --------- Core Integrity 0/1150 Matter 291/300 Energy 100/100 System Corruption 16% Temperature Cool (0) Movement Core (50) Location -4/Waste Parts ------- > --- POWER (2) -------- (None) > --- PROPULSION (6) --- (None) > --- UTILITY (9) ------ (None) > --- WEAPON (2) ------- (None) > --- INVENTORY (5) ---- Micro Antimatter Reactor Experimental Melee Analysis Suite Stasis Canceller Experimental Phase Shifter Cloak of Protection Peak State ------------ > --- POWER ------------ Micro Antimatter Reactor Micro Antimatter Reactor > --- PROPULSION ------- Cooled Field Propulsion Drive Cooled Field Propulsion Drive Cooled Field Propulsion Drive Cooled Field Propulsion Drive Cooled Field Propulsion Drive Cooled Field Propulsion Drive > --- UTILITY ---------- Large Storage Unit Advanced Gravity Neutralizer Structural Scanner Experimental Utility Shielding Advanced Hacking Suite Experimental Hacking Suite Experimental Hacking Suite Experimental Hacking Suite Ghost Barrier > --- WEAPON ----------- Guided Micro-nuke Launcher > --- INVENTORY -------- Micro Antimatter Reactor Advanced Cooling System Experimental Sensor Array Experimental Melee Analysis Suite Experimental Melee Analysis Suite Stasis Canceller Advanced Reaction Control System Experimental Phase Shifter Cloak of Protection Powered Armor Variable Charge Gun Advanced Datajack Power Sword [Rating: 148] Favorites ----------- Power Cooled Ion Engine Engine Cooled Ion Engine Power Core Light Fission Core Reactor Micro Antimatter Reactor Propulsion Cooled VTOL Module Treads Light Treads Flight Unit Cooled VTOL Module Utility Advanced Hacking Suite Device Structural Scanner Storage Medium Storage Unit Processor Improved Targeting Computer Hackware Advanced Hacking Suite Protection Light Armor Plating Weapon Enhanced Autogun Energy Gun Heavy Wave Gun Energy Cannon Advanced Beam Cannon Ballistic Gun Enhanced Autogun Ballistic Cannon Light Cannon Launcher Rocket Launcher Impact Weapon Powered Hammer Slashing Weapon Scythe Special Melee Weapon Datajack Build | -11 -10 -10 -9 -9 -9 -8 -8 -8 -8 -7 -7 -7 -7 -7 -7 -6 -6 -6 -6 -6 -6 -6 -6 -5 -5 -5 -5 -5 -5 -4 -4 -4 ------- Run | Yrd Mat Min Mat Min Exi Min Mat Gar Mat Fac Was Fac Low Low Zio Pro Fac Was Fac Ext Cet Arc Hub Fac Was Fac Upp Upp War Pro Fac Was Slots Evolved 12 | . . . 2 . . . 2 . . 2 . . . . . . 2 . . . . . . 2 . . . . . . 2 . Power 1 | . . . . . . . . . . . . . . . . . . . . . . . . 1 . . . . . . . . Propulsion 4 | . . . . . . . 1 . . 1 . . . . . . 1 . . . . . . 1 . . . . . . . . Utility 7 | . . . 2 . . . 1 . . 1 . . . . . . 1 . . . . . . . . . . . . . 2 . Weapon . | . . . . . . . . . . . . . . . . . . . . . . . . . . . . . . . . . Parts Attached 502 | 6 20 . 31 4 1 5 42 22 10 52 . 20 2 4 4 1 31 . 54 12 1 1 9 54 . 49 8 3 13 5 36 2 Power 39 | 1 . . 4 . . . 2 2 1 3 . 2 . . . . 3 . 1 2 . . 2 5 . 7 . . . . 3 1 Engine 11 | 1 . . 4 . . . . 1 . . . . . . . . . . . 1 . . 2 1 . 1 . . . . . . Core 20 | . . . . . . . 2 1 1 2 . 2 . . . . 3 . 1 1 . . . 3 . 3 . . . . 1 . Reactor 8 | . . . . . . . . . . 1 . . . . . . . . . . . . . 1 . 3 . . . . 2 1 Propulsion 100 | 2 3 . 8 . . . 10 3 2 9 . 1 . . . . 8 . 10 . . . 2 15 . 14 . . 2 . 10 1 Treads 25 | 2 3 . 7 . . . 8 3 2 . . . . . . . . . . . . . . . . . . . . . . . Leg . | . . . . . . . . . . . . . . . . . . . . . . . . . . . . . . . . . Wheel . | . . . . . . . . . . . . . . . . . . . . . . . . . . . . . . . . . Hover . | . . . . . . . . . . . . . . . . . . . . . . . . . . . . . . . . . Flight 75 | . . . 1 . . . 2 . . 9 . 1 . . . . 8 . 10 . . . 2 15 . 14 . . 2 . 10 1 Utility 182 | 1 4 . 13 . 1 1 15 6 4 15 . 11 1 . 2 . 11 . 27 7 1 . 1 14 . 22 4 3 5 1 12 . Device 78 | . 1 . . . . . 6 1 3 5 . 8 1 . . . 1 . 15 3 1 . 1 5 . 9 2 3 4 1 8 . Storage 9 | 1 1 . 1 . . . 1 . . 1 . . . . . . . . 1 . . . . 2 . 1 . . . . . . Processor 11 | . . . 1 . . . 1 . . 1 . 1 . . 2 . . . 2 . . . . 1 . 1 . . . . 1 . Hackware 30 | . . . . . . . . 1 . 5 . 2 . . . . 8 . 2 . . . . 4 . 6 . . . . 2 . Protection 54 | . 2 . 11 . 1 1 7 4 1 3 . . . . . . 2 . 7 4 . . . 2 . 5 2 . 1 . 1 . Artifact . | . . . . . . . . . . . . . . . . . . . . . . . . . . . . . . . . . Weapon 181 | 2 13 . 6 4 . 4 15 11 3 25 . 6 1 4 2 1 9 . 16 3 . 1 4 20 . 6 4 . 6 4 11 . Energy Gun 36 | 1 1 . . . . . 2 . . 8 . 2 . . . . 2 . 7 1 . . 3 5 . . . . 3 . 1 . Energy Cannon 7 | . . . 1 1 . 1 2 . . 1 . . . . . . . . . . . . . . . 1 . . . . . . Ballistic Gun 28 | 1 4 . 3 . . 1 6 5 2 1 . 2 . . . . 2 . . . . . . 1 . . . . . . . . Ballistic Cannon 14 | . 6 . 2 1 . . 2 2 . . . 1 . . . . . . . . . . . . . . . . . . . . Launcher 33 | . 1 . . 2 . 2 3 1 1 4 . . . 2 . 1 . . 1 1 . . . 5 . 1 2 . 1 2 3 . Special Weapon . | . . . . . . . . . . . . . . . . . . . . . . . . . . . . . . . . . Impact Weapon 3 | . . . . . . . . . . 3 . . . . . . . . . . . . . . . . . . . . . . Slashing Weapon 50 | . . . . . . . . 3 . 5 . 1 1 2 2 . 4 . 7 1 . 1 1 8 . 3 2 . 2 2 5 . Piercing Weapon . | . . . . . . . . . . . . . . . . . . . . . . . . . . . . . . . . . Special Melee Weapon 10 | . 1 . . . . . . . . 3 . . . . . . 1 . 1 . . . . 1 . 1 . . . . 2 . Unidentified Prototypes 39 | . . . 2 . . . 6 . . 8 . 2 . . . . . . 5 . . . 1 6 . . . . 8 . 1 . Corrupted Parts 1 | . . . . . . . . . . . . . . . . . . . . . . . . . . 1 . . . . . . System Corruption 5 | . . . . . . . . . . . . . . . . . . . . . . . . . . 5 . . . . . . Parts Lost 42 | . 1 . 3 . . 1 6 6 1 1 . 3 . . . . 2 . . 4 . . 1 1 . 2 . . . . 2 8 Power 8 | . . . . . . . . 1 . . . . . . . . . . . 2 . . 1 . . 1 . . . . 1 2 Propulsion 3 | . . . . . . . . 1 . . . . . . . . . . . . . . . . . . . . . . . 2 Utility 22 | . . . 2 . . 1 4 4 . 1 . 3 . . . . 2 . . 1 . . . 1 . . . . . . . 3 Weapon 9 | . 1 . 1 . . . 2 . 1 . . . . . . . . . . 1 . . . . . 1 . . . . 1 1 Highest Loss Streak 5 | . 1 . 1 . . 1 3 5 1 1 . 1 . . . . 1 . . 3 . . 1 1 . 1 . . . . 1 5 To Critical Strikes . | . . . . . . . . . . . . . . . . . . . . . . . . . . . . . . . . . Average Slot Usage (%) 94 | . 93 100 99 100 100 100 98 96 90 90 92 89 84 84 86 92 92 93 96 88 86 93 92 92 94 92 93 94 96 94 91 53 Engine 4 | . 14 14 10 11 11 11 4 6 . . . . . . . . . . . 3 6 6 6 4 5 3 . . . . . . Core 3 | . . . . . . . 4 2 9 7 7 6 7 7 7 7 6 6 5 2 . . . 4 5 4 . . . . . . Treads 12 | . 28 28 22 22 22 22 26 26 27 3 . . . . . . . . . . . . . . . . . . . . . . Flight 15 | . . . . . . . . . . 25 30 29 30 30 30 30 30 33 32 33 33 33 32 33 35 34 35 35 35 35 29 10 Device 6 | . 1 . . . . . 14 8 9 5 7 7 15 15 15 15 5 6 6 5 11 13 13 7 5 3 6 10 9 9 8 8 Storage 7 | . 14 14 11 11 11 11 9 9 9 3 7 7 7 7 7 7 6 6 6 6 6 6 6 5 5 5 5 5 5 5 5 1 Processor 3 | . . . 8 11 11 11 7 . . 1 . . . . 2 7 4 . . . . . . . . 1 . . . . . . Hackware 13 | . . . . . . . . 8 9 25 30 26 15 15 15 15 26 26 29 23 20 20 20 19 23 24 23 23 23 23 25 22 Protection 9 | . 6 14 24 22 22 22 13 16 9 3 . . . . . . . 6 3 9 8 6 6 4 5 3 3 . 1 1 5 4 Energy Gun 1 | . 4 . . . . . 3 . . . . . . . . . . . 2 . . . 4 2 . . . . 2 . . . Energy Cannon 1 | . . . 4 5 11 4 5 . . . . . . . . . . . . . . . . . . . . . . . . . Ballistic Gun 4 | . 11 . 6 . . 9 6 14 17 4 . . . . . . . . . . . . . . . . . . . . . . Ballistic Cannon 2 | . 10 14 11 5 11 4 2 1 . . . . . . . . . . . . . . . . . . . . . . . . Slashing Weapon 2 | . . . . . . . . 1 . 4 7 6 7 5 7 7 5 6 3 . . 6 1 2 5 4 3 5 5 4 4 2 Naked Turns 22 | . . . . . . . . . . . . . . . . . . . . . . . . . . . . . . . . 22 Heaviest Build 117 | 13 33 33 66 66 66 66 104 117 115 113 19 26 20 25 22 20 24 22 27 31 25 26 30 40 33 43 49 43 52 49 48 41 Greatest Support 77 | 40 40 40 40 40 40 40 60 77 77 77 20 28 20 26 20 28 34 25 36 45 45 30 39 45 40 42 51 51 42 57 72 60 Greatest Overweight (x) 9 | . . . 3 1 1 1 5 1 1 2 . 1 . 1 1 . 1 . 1 8 . . 9 1 . 1 1 1 1 1 1 1 Average Overweight (x) . | . . . . 1 1 1 1 1 1 . . . . . . . . . . . . . . . . . . . . . . . Largest Inventory Capacity 25 | 8 15 15 20 20 20 20 25 25 25 25 10 10 10 10 10 10 10 10 10 10 10 10 10 25 10 15 15 15 15 15 15 15 Average Capacity 15 | 7 14 15 17 20 20 20 23 25 25 9 10 10 10 10 10 10 10 10 10 10 10 10 10 10 10 10 15 15 15 15 15 7 Most Carried 25 | . 12 13 20 20 20 20 25 25 25 24 10 10 10 9 10 10 10 10 10 10 10 10 10 10 10 15 15 14 15 13 15 15 Average Carried 14 | . 7 12 16 19 19 19 22 24 24 8 10 9 9 9 9 9 9 9 9 8 10 9 8 8 10 10 14 14 14 11 14 7 Final Capacity 25 | 8 15 15 20 20 20 20 25 25 25 10 10 10 10 10 10 10 10 10 10 10 10 10 10 10 10 15 15 15 15 15 15 5 Final Carried 25 | . 12 13 19 20 20 19 25 23 24 10 10 9 9 9 10 10 10 10 10 10 10 9 10 10 10 14 14 14 13 12 14 5 Class Distribution -------------------- 31% | Mutant 23% | Hacker-Sprinter 18% | Scavenger-Mutant 14% | Wizard-Sprinter 5% | Hacker-Mutant Dominant Class ---------------- Mutant | -10/Materials Mutant | -10/Mines Mutant | -9/Materials Mutant | -9/Mines Mutant | -9/Exiles Scavenger-Mutant | -8/Mines Scavenger-Mutant | -8/Materials Scavenger-Mutant | -8/Garrison Mutant | -8/Materials Hacker-Sprinter | -7/Factory Hacker-Sprinter | -7/Waste Hacker-Sprinter | -7/Factory Hacker-Sprinter | -7/Lower Caves Hacker-Sprinter | -7/Lower Caves Hacker-Mutant | -7/Zion Hacker-Sprinter | -6/Proximity Caves Hacker-Sprinter | -6/Factory Hacker-Sprinter | -6/Waste Wizard-Sprinter | -6/Factory Hacker-Sprinter | -6/Extension Hacker-Sprinter | -6/Cetus Hacker-Sprinter | -6/Archives Hacker-Sprinter | -6/Hub_04(d) Hacker-Sprinter | -5/Factory Hacker-Sprinter | -5/Waste Wizard-Sprinter | -5/Factory Wizard-Sprinter | -5/Upper Caves Wizard-Sprinter | -5/Upper Caves Wizard-Sprinter | -5/Warlord Wizard-Sprinter | -4/Proximity Caves Wizard-Sprinter | -4/Factory Wizard-Mutant | -4/Waste Resources | -11 -10 -10 -9 -9 -9 -8 -8 -8 -8 -7 -7 -7 -7 -7 -7 -6 -6 -6 -6 -6 -6 -6 -6 -5 -5 -5 -5 -5 -5 -4 -4 -4 ----------- Run | Yrd Mat Min Mat Min Exi Min Mat Gar Mat Fac Was Fac Low Low Zio Pro Fac Was Fac Ext Cet Arc Hub Fac Was Fac Upp Upp War Pro Fac Was Matter Collected 9819 | 147 675 20 900 250 . 297 980 418 992 818 . 313 20 145 75 38 326 . 555 280 . 20 85 629 . 625 146 230 204 30 601 . Remotely . | . . . . . . . . . . . . . . . . . . . . . . . . . . . . . . . . . Salvage Created 12397 | . 857 10 1219 64 . 270 1896 382 977 938 . 420 . 217 . 145 677 . 859 538 . 37 185 460 130 969 129 97 . 145 776 . Parts 696 | . 45 3 75 6 . 29 101 16 64 57 . 25 . 8 . 6 31 . 61 16 . 3 12 32 7 32 4 5 . 7 51 . Haulers Intercepted 27 | . 2 . 5 . . . 6 . . 3 . 1 . . . . 3 . 1 . . . . 1 . 4 . . . . 1 . Recyclers Shooed 8 | . 1 1 1 . . 1 . . 1 . . . . . . . . . 2 . . . . . . 1 . . . . . . Parts Field Recycled . | . . . . . . . . . . . . . . . . . . . . . . . . . . . . . . . . . Retrieved Matter . | . . . . . . . . . . . . . . . . . . . . . . . . . . . . . . . . . Parts Self-Destructed 27 | . . . . . . . . . . . . . 5 7 . 7 . . . . . . . . . . 2 . . 6 . . Prevented 1 | . . . . . . . . . . . . . . . . 1 . . . . . . . . . . . . . . . . Kills | -11 -10 -10 -9 -9 -9 -8 -8 -8 -8 -7 -7 -7 -7 -7 -7 -6 -6 -6 -6 -6 -6 -6 -6 -5 -5 -5 -5 -5 -5 -4 -4 -4 ------- Run | Yrd Mat Min Mat Min Exi Min Mat Gar Mat Fac Was Fac Low Low Zio Pro Fac Was Fac Ext Cet Arc Hub Fac Was Fac Upp Upp War Pro Fac Was Combat Hostiles Destroyed 240 | . 20 . 20 9 . 18 37 11 22 13 . 2 . 7 . 5 7 . 1 5 . . . 19 . 13 8 . . 9 14 . Melee 20 | . . . . . . . . . . 1 . 2 . . . 2 6 . 1 . . . . 4 . 3 . . . . 1 . Guns 59 | . 5 . 9 . . 1 12 7 20 2 . . . . . . 1 . . 2 . . . . . . . . . . . . Cannons 46 | . 15 . 11 1 . 2 16 1 . . . . . . . . . . . . . . . . . . . . . . . . AOE 115 | . . . . 8 . 15 9 3 2 10 . . . 7 . 3 . . . 3 . . . 15 . 10 8 . . 9 13 . Classes Destroyed 21 | . 4 1 5 1 . 2 2 1 1 . . . . . . . . . . . . . . . 1 1 1 1 . . . . Worker 20 | . . . 1 . . . 1 . 3 8 . 3 . . . . . . . 1 . . 1 1 . . . . . . 1 . Builder 15 | . . . . . . 1 1 . . . . 1 . . . . 1 . 6 2 . . 1 . . 1 . . . . 1 . Tunneler 5 | . . 1 . . . 1 1 . . 1 . . . . . . . . . . . . . . . . . . . . 1 . Hauler 27 | . 2 . 5 . . . 6 . . 3 . 1 . . . . 3 . 1 . . . . 1 . 4 . . . . 1 . Recycler 20 | . . . 3 . . . 2 . . 5 . 2 . . . . . . 4 2 . . 1 . . . . . . . 1 . Minesweeper 1 | . . . . . . . . . . . . . . . . . . . . . . . . . . . 1 . . . . . Operator 8 | . 1 . 1 . . . 1 . . 1 . 1 . . . . . . . . . 1 1 . . . . . . . 1 . Watcher 52 | . 2 . 3 . . . 5 . 4 3 . 3 . . . . 3 . 5 1 . . 1 6 . 8 . . . . 8 . Swarmer 105 | . . . 6 4 . 12 7 3 8 7 . . . . . 1 6 . 1 2 . . . 19 . 4 6 . . 5 14 . Grunt 97 | . 20 . 6 1 . 5 19 6 9 5 . 1 . 7 . 3 1 . . 1 . . . . . 7 2 . . 4 . . Brawler 2 | . . . . . . 1 1 . . . . . . . . . . . . . . . . . . . . . . . . . Duelist 3 | . . . 1 . . . . . 1 . . . . . . 1 . . . . . . . . . . . . . . . . Sentry 19 | . . . 7 . . . 7 1 2 1 . 1 . . . . . . . . . . . . . . . . . . . . Specialist 2 | . . . . . . . 2 . . . . . . . . . . . . . . . . . . . . . . . . . Hunter 3 | . . . . . . . . . 2 . . . . . . . . . . 1 . . . . . . . . . . . . Programmer 2 | . . . . . . . . . . . . . . . . . . . . . . . . . . 2 . . . . . . Heavy 1 | . . . . . . . 1 . . . . . . . . . . . . . . . . . . . . . . . . . Behemoth 2 | . . . . . . . . 1 . . . . . . . . . . . 1 . . . . . . . . . . . . Samaritan 2 | . . . . . . . . . . . . . . . . . . . . . . . . . . . . 2 . . . . Assembled 4 | . . . . 4 . . . . . . . . . . . . . . . . . . . . . . . . . . . . Thug 2 | . . . . . . . . . . . . . . . . . . . . 2 . . . . . . . . . . . . Martyr 2 | . . . . . . . . . . . . . . . . . . . . . . . . . 2 . . . . . . . Guerrilla 2 | . . . . . . . . . . . . . . . . . . . . 2 . . . . . . . . . . . . Best Kill Streak 17 | . 6 1 5 4 . 4 6 3 4 6 . 2 . 4 . 4 3 . 3 7 . 1 3 17 . 9 5 . . 5 5 . Combat Bots Only 10 | . 6 . 4 4 . 4 4 3 4 4 . 1 . 4 . 4 3 . 1 3 . . . 10 . 8 5 . . 5 5 . Max Kills in Single Turn 6 | . 1 1 2 2 . 3 3 2 2 4 . 1 . 2 . 3 1 . 1 3 . 1 2 6 1 3 3 1 . 3 5 . Gunslinging . | . . . . . . . . . . . . . . . . . . . . . . . . . . . . . . . . . Exploded 6 | . . . . 2 . 3 3 2 2 3 . . . 2 . 3 . . . 2 . . . 6 . 3 3 . . 3 5 . Melee 1 | . . . . . . . . . . 1 . 1 . . . 1 1 . 1 . . . . 1 . 1 . . . . 1 . Uniques/NPCs Destroyed . | . . . . . . . . . . . . . . . . . . . . . . . . . . . . . . . . . Combat | -11 -10 -10 -9 -9 -9 -8 -8 -8 -8 -7 -7 -7 -7 -7 -7 -6 -6 -6 -6 -6 -6 -6 -6 -5 -5 -5 -5 -5 -5 -4 -4 -4 -------- Run | Yrd Mat Min Mat Min Exi Min Mat Gar Mat Fac Was Fac Low Low Zio Pro Fac Was Fac Ext Cet Arc Hub Fac Was Fac Upp Upp War Pro Fac Was Hostile Shots Fired 1070 | . 85 . 102 17 . 52 156 60 90 58 . 114 . 1 . 8 55 . 8 105 . 2 17 12 . 41 15 28 . 5 15 24 Missed 393 | . 15 . 24 5 . 12 47 14 21 33 . 58 . . . 4 26 . 5 57 . 1 11 8 . 18 8 18 . 1 6 1 Damage Taken 10677 | . 869 . 913 208 . 476 1536 998 955 292 . 399 . 18 . 76 353 . 57 674 29 28 331 58 19 508 112 173 . 75 481 1039 Core 2556 | . 132 . 105 37 . 70 66 51 19 126 . 123 . . . . 104 . 18 127 . 28 191 . 19 36 31 88 . . 238 947 Absorbed by Shields 499 | . . . . . . . 340 48 22 . . 45 . . . . . . . 44 . . . . . . . . . . . . Redirected to Shielding 127 | . 27 . 24 . . . . . . . . . . . . . . . 10 35 . . 16 . . . . . . . 15 . Regen/Repaired (Parts) 2222 | . 97 . 164 . . . 158 . 198 80 . 55 . . . . 234 . 143 . . . . 456 . 355 . . . . 282 . Core Remaining (%) 65 | 100 . 47 . . . 47 . . 75 . . . . . . 64 . . . . . . 44 . . . . . . 82 . . Volleys Fired 820 | . 83 . 95 13 . 24 157 40 106 41 . 19 . 10 . 2 17 . 57 33 . . 36 52 . 7 11 . 4 8 5 . Largest 2 | . 2 . 2 2 . 2 2 2 2 2 . 1 . 1 . 1 1 . 1 1 . . 1 1 . 1 1 . 1 1 1 . Hottest 225 | . 75 . 107 107 . 91 131 96 61 88 . 88 . 39 . 39 88 . 88 88 . . 88 88 . 55 55 . 45 55 225 . Shots Fired 1281 | . 166 . 182 26 . 44 289 79 192 42 . 19 . 10 . 2 17 . 57 33 . . 36 52 . 7 11 . 4 8 5 . Gun 756 | . 95 . 77 . . 9 117 48 191 28 . 5 . . . . 17 . 57 23 . . 36 47 . . . . 4 . 2 . Cannon 410 | . 71 . 105 8 . 20 163 29 . . . 14 . . . . . . . . . . . . . . . . . . . . Launcher 115 | . . . . 18 . 15 9 2 1 14 . . . 10 . 2 . . . 10 . . . 5 . 7 11 . . 8 3 . Special . | . . . . . . . . . . . . . . . . . . . . . . . . . . . . . . . . . Kinetic 772 | . 149 . 164 4 . 27 121 77 191 21 . 14 . . . . 4 . . . . . . . . . . . . . . . Thermal 325 | . . . 18 4 . 2 111 . . 7 . 5 . . . . 13 . 57 23 . . 36 47 . . . . . . 2 . Explosive 115 | . . . . 18 . 15 9 2 1 14 . . . 10 . 2 . . . 10 . . . 5 . 7 11 . . 8 3 . Electromagnetic 65 | . 17 . . . . . 48 . . . . . . . . . . . . . . . . . . . . . . . . . Entropic 4 | . . . . . . . . . . . . . . . . . . . . . . . . . . . . . 4 . . . Robot Hit Streak 24 | . 19 . 24 6 . 7 15 12 13 4 . 3 . 4 . 2 2 . 13 14 . . . 1 . . . . . . . . Robot Miss Streak 7 | . 3 . 5 4 . 3 6 2 7 1 . 1 . 1 . . 1 . . 3 . . . 2 . . . . . . . . Penetration Max 1 | . . . . . . . . . . 1 . . . . . . . . . . . . . . . . . . . . . . Secondary Targets 3 | . . . . . . . . 1 2 . . . . . . . . . . . . . . . . . . . . . . . Max Gunslinging Chain 1 | . . . . . . . . 1 1 . . . . . . . . . . . . . . . . . . . . . . . Shots Hit Robots 902 | . 116 . 108 10 . 22 191 65 113 36 . 29 . 2 . 6 34 . 43 12 . 2 3 19 7 50 4 2 . . 28 . Core Hits 575 | . 44 1 43 16 . 31 87 22 49 45 . 12 . 15 . 12 16 . 16 35 . 1 8 31 4 33 13 1 . 13 27 . Critical Kills 2 | . . . . . . . 1 . . 1 . . . . . . . . . . . . . . . . . . . . . . Critical Parts Destroyed 3 | . . . . . . 1 1 . 1 . . . . . . . . . . . . . . . . . . . . . . . Critical Strikes 39 | . 3 . . 1 . 2 5 4 1 3 . 3 . . . . 2 . 3 3 . . . . . 6 . . . . 3 . Burn 3 | . . . . . . . 2 . . . . . . . . . . . . 1 . . . . . . . . . . . . Meltdown 1 | . . . . . . . 1 . . . . . . . . . . . . . . . . . . . . . . . . . Destroy 4 | . . . . . . 1 1 . 1 1 . . . . . . . . . . . . . . . . . . . . . . Blast 12 | . 3 . . 1 . 1 1 4 . . . 2 . . . . . . . . . . . . . . . . . . . . Sever 19 | . . . . . . . . . . 2 . 1 . . . . 2 . 3 2 . . . . . 6 . . . . 3 . Melee Attacks 612 | . . . . . . . . 5 . 68 . 49 1 . . 5 89 . 79 12 . 13 6 45 7 130 5 5 6 . 85 2 Impact 9 | . . . . . . . . . . 9 . . . . . . . . . . . . . . . . . . . . . . Slashing 596 | . . . . . . . . 5 . 56 . 49 1 . . 5 87 . 79 12 . 13 6 44 7 130 5 5 6 . 84 2 Piercing . | . . . . . . . . . . . . . . . . . . . . . . . . . . . . . . . . . Sneak Attacks 75 | . . . . . . . . . . 15 . 7 . . . 1 7 . 14 . . 2 1 4 7 8 1 2 . . 6 . Combat Hostiles 2 | . . . . . . . . . . . . . . . . 1 . . . . . . . 1 . . . . . . . . Follow-up Attacks . | . . . . . . . . . . . . . . . . . . . . . . . . . . . . . . . . . Damage Inflicted 41435 | . 1602 20 1971 838 . 1375 5462 1594 2283 3315 . 1235 . 752 . 597 1277 . 1953 2351 . 167 660 2643 436 4604 1299 208 . 1603 3122 68 Guns 6927 | . 699 . 698 . . 62 1566 740 2074 365 . . . . . . 54 . 317 286 . . . 66 . . . . . . . . Cannons 5716 | . 891 . 1260 125 . 216 2250 696 . . . 278 . . . . . . . . . . . . . . . . . . . . Explosions 16778 | . . . . 701 . 1083 1609 158 122 1599 . . . 752 . 431 . . . 1870 . . 476 1819 . 1921 1077 . . 1603 1557 . Melee 11744 | . . . . . . . . . . 1344 . 957 . . . 166 1223 . 1636 195 . 167 184 758 436 2683 222 208 . . 1565 . Ramming 270 | . 12 20 13 12 . 14 37 . 87 7 . . . . . . . . . . . . . . . . . . . . . 68 Kinetic 9134 | . 1375 . 1756 62 . 257 1531 1436 2074 365 . 278 . . . . . . . . . . . . . . . . . . . . Thermal 3054 | . . . 202 63 . 21 2045 . . . . . . . . . 54 . 317 286 . . . 66 . . . . . . . . Explosive 15697 | . . . . 701 . 1083 1004 158 122 1599 . . . 752 . 431 . . . 1870 . . . 1819 . 1921 1077 . . 1603 1557 . Electromagnetic 1536 | . 215 . . . . . 845 . . . . . . . . . . . . . . . 476 . . . . . . . . . Impact 63 | . . . . . . . . . . 63 . . . . . . . . . . . . . . . . . . . . . . Slashing 11681 | . . . . . . . . . . 1281 . 957 . . . 166 1223 . 1636 195 . 167 184 758 436 2683 222 208 . . 1565 . Piercing . | . . . . . . . . . . . . . . . . . . . . . . . . . . . . . . . . . Highest Corruption 16 | . . . . . . . . . . . 6 6 . . . . . 6 6 . . . 3 . . 5 . . . . . 16 Average Corruption 3 | . . . . . . . . . . . 6 1 . . . . . 6 3 . . . 2 . . 2 . . . . . 10 Corruption Purged 22 | . . . . . . . . . . . . 7 . . . . . . 7 . . . . . . 8 . . . . . . Corruption Blocked . | . . . . . . . . . . . . . . . . . . . . . . . . . . . . . . . . . Effects 21 | . . . . . . . . . . . . 4 . . . . . 1 5 . . . . . . 5 . . . . . 6 Message Errors 4 | . . . . . . . . . . . . . . . . . . . 1 . . . . . . 1 . . . . . 2 Matter Fused 2 | . . . . . . . . . . . . 1 . . . . . . . . . . . . . . . . . . . 1 Heat Flow Errors 3 | . . . . . . . . . . . . 1 . . . . . . 1 . . . . . . 1 . . . . . . Energy Discharges 5 | . . . . . . . . . . . . 1 . . . . . . 2 . . . . . . 1 . . . . . 1 Data Loss (minor) 2 | . . . . . . . . . . . . 1 . . . . . . . . . . . . . 1 . . . . . . Data Loss (major) 3 | . . . . . . . . . . . . . . . . . . 1 1 . . . . . . 1 . . . . . . Misdirections 2 | . . . . . . . . . . . . . . . . . . . . . . . . . . . . . . . . 2 Overload Shots 2 | . . . . . . . . . . . . . . . . . . . . . . . . . . . . . . . 2 . Overflow Damage 2624 | . . . 43 82 . 65 87 5 . 372 . 161 . 7 . . 123 . 266 44 . 27 75 212 38 315 277 92 . 86 247 . Projectiles 103 | . . . 43 13 . 3 44 . . . . . . . . . . . . . . . . . . . . . . . . . Explosions 1097 | . . . . 64 . 62 43 5 . 134 . . . 7 . . . . . 39 . . 55 187 . 88 203 . . 86 124 . Melee 1424 | . . . . 5 . . . . . 238 . 161 . . . . 123 . 266 5 . 27 20 25 38 227 74 92 . . 123 . Knockbacks 26 | . 12 . 11 . . 2 1 . . . . . . . . . . . . . . . . . . . . . . . . . Impact 1 | . . . . . . 1 . . . . . . . . . . . . . . . . . . . . . . . . . . Kinetic 24 | . 11 . 11 . . 1 1 . . . . . . . . . . . . . . . . . . . . . . . . . Secondary 1 | . 1 . . . . . . . . . . . . . . . . . . . . . . . . . . . . . . . Self-Inflicted Damage 540 | . . . . 75 . 61 55 92 . . . . . . . . . . . 14 . . 213 . . . . . . . . 30 Shots 13 | . . . . 2 . 3 2 2 . . . . . . . . . . . 1 . . 3 . . . . . . . . . Rammed 56 | . 5 2 6 2 . 4 5 . 7 1 . . . . . . . . . . . . . . . . . . . . . 24 Targets Rammed 59 | . 5 3 6 2 . 4 6 . 8 1 . . . . . . . . . . . . . . . . . . . . . 24 Kicked . | . . . . . . . . . . . . . . . . . . . . . . . . . . . . . . . . . Crushed 3 | . . 1 . . . . 1 . 1 . . . . . . . . . . . . . . . . . . . . . . . Highest Temperature 372 | . 125 . 182 114 . 114 372 293 299 156 . 173 . 13 . 57 208 . 313 336 155 . 365 344 21 114 186 165 138 129 245 72 Average Temperature 55 | . 28 . 43 32 . 34 83 113 82 38 . 74 . 7 . 29 73 . 89 151 76 . 108 80 10 14 76 29 41 30 24 21 Received Heat Transfer 2534 | . 507 . 282 78 . 126 458 96 357 27 . 82 . 9 . 9 99 . 18 112 . . 6 9 . 153 9 9 . 9 79 . Effects 17 | . . . . . . . 5 2 4 . . . . . . . . . 2 1 . . . 3 . . . . . . . . Energy Bleed 2 | . . . . . . . . . 1 . . . . . . . . . . . . . . 1 . . . . . . . . Interference 13 | . . . . . . . 3 2 3 . . . . . . . . . 2 1 . . . 2 . . . . . . . . Short Circuit 1 | . . . . . . . 1 . . . . . . . . . . . . . . . . . . . . . . . . . Damage (minor) 1 | . . . . . . . 1 . . . . . . . . . . . . . . . . . . . . . . . . . Siege Activations . | . . . . . . . . . . . . . . . . . . . . . . . . . . . . . . . . . Robots Corrupted 1 | . . . . . . . 1 . . . . . . . . . . . . . . . . . . . . . . . . . Combat Hostiles . | . . . . . . . . . . . . . . . . . . . . . . . . . . . . . . . . . Parts Fried 8 | . 1 . . . . . 4 . . 2 . . . . . . . . . . . . 1 . . . . . . . . . Impact Corruptions 3 | . . . . 1 . . . . . 2 . . . . . . . . . . . . . . . . . . . . . . Robots Melted 1 | . . . . . . . 1 . . . . . . . . . . . . . . . . . . . . . . . . . Combat Hostiles . | . . . . . . . . . . . . . . . . . . . . . . . . . . . . . . . . . Parts Melted 4 | . . . . . . . 3 . . . . . . . . 1 . . . . . . . . . . . . . . . . Heat Transferred 4842 | . . . 370 111 . 37 3325 . . . . . . . . . 74 . 407 444 . . . 74 . . . . . . . . Parts Sabotaged . | . . . . . . . . . . . . . . . . . . . . . . . . . . . . . . . . . Parts Stolen . | . . . . . . . . . . . . . . . . . . . . . . . . . . . . . . . . . Parts Stripped . | . . . . . . . . . . . . . . . . . . . . . . . . . . . . . . . . . Power Chain Reactions 2 | . . . . . . . 2 . . . . . . . . . . . . . . . . . . . . . . . . . Alert | -11 -10 -10 -9 -9 -9 -8 -8 -8 -8 -7 -7 -7 -7 -7 -7 -6 -6 -6 -6 -6 -6 -6 -6 -5 -5 -5 -5 -5 -5 -4 -4 -4 ------- Run | Yrd Mat Min Mat Min Exi Min Mat Gar Mat Fac Was Fac Low Low Zio Pro Fac Was Fac Ext Cet Arc Hub Fac Was Fac Upp Upp War Pro Fac Was Peak Influence 1031 | . 302 100 385 372 . 429 559 1031 621 537 51 356 . . . . 323 130 205 307 60 52 1006 761 142 446 . . . . 475 200 Initial 502 | . . 100 . 141 . . 60 227 502 39 21 35 . . . . 157 70 91 10 29 . 18 401 122 99 . . . . 126 166 Average 209 | . 179 46 241 153 . 260 208 607 242 183 34 105 . . . . 187 94 76 139 21 27 253 349 132 160 . . . . 150 157 Maximum Alert Level 3 | . 1 . 1 1 . 2 2 3 2 2 . 1 . . . . 1 . 1 1 . . 3 3 . 2 . . . . 2 1 Low Security (%) 54 | 100 45 100 23 71 . 23 51 . 57 58 100 84 . . . . 72 100 90 78 100 100 65 16 100 66 . . . . 71 98 Level 1 33 | . 54 . 76 28 . 60 37 29 8 23 . 15 . . . . 27 . 9 21 . . 20 43 . 31 . . . . 25 1 Level 2 9 | . . . . . . 15 11 29 33 17 . . . . . . . . . . . . . 38 . 1 . . . . 3 . Level 3 2 | . . . . . . . . 41 . . . . . . . . . . . . . . 13 1 . . . . . . . . Level 4 . | . . . . . . . . . . . . . . . . . . . . . . . . . . . . . . . . . Level 5 . | . . . . . . . . . . . . . . . . . . . . . . . . . . . . . . . . . High Security . | . . . . . . . . . . . . . . . . . . . . . . . . . . . . . . . . . Max Security . | . . . . . . . . . . . . . . . . . . . . . . . . . . . . . . . . . Squads Dispatched 114 | . 6 . 4 . . 1 3 . 8 15 . 10 . . . 1 9 . 10 1 . . 6 12 . 16 . . . . 12 . Investigation 56 | . 5 . 3 . . . . . 5 7 . 6 . . . 1 6 . 7 . . . 1 7 . 6 . . . . 2 . Extermination 16 | . . . . . . . . . . 3 . 1 . . . . 2 . 2 . . . . 3 . 2 . . . . 3 . Reinforcement 37 | . 1 . 1 . . 1 3 . 2 5 . 3 . . . . 1 . 1 1 . . 4 2 . 5 . . . . 7 . Assault . | . . . . . . . . . . . . . . . . . . . . . . . . . . . . . . . . . Garrison 5 | . . . . . . . . . 1 . . . . . . . . . . . . . 1 . . 3 . . . . . . Intercept . | . . . . . . . . . . . . . . . . . . . . . . . . . . . . . . . . . Searches Triggered . | . . . . . . . . . . . . . . . . . . . . . . . . . . . . . . . . . Construction Impeded 4 | . . . . . . 1 . . 1 . . . . . . . . . . 1 . . 1 . . . . . . . . . Haulers Reinforced 10 | . . . . . . . . . . 2 . 1 . . . . 1 . . . . . . 1 . 3 . . . . 2 . Active Scanning Responses . | . . . . . . . . . . . . . . . . . . . . . . . . . . . . . . . . . Cargo Convoy Interrupts 4 | . . . . . . . . . . 1 . 1 . . . . . . 1 . . . . 1 . . . . . . . . Stealth | -11 -10 -10 -9 -9 -9 -8 -8 -8 -8 -7 -7 -7 -7 -7 -7 -6 -6 -6 -6 -6 -6 -6 -6 -5 -5 -5 -5 -5 -5 -4 -4 -4 --------- Run | Yrd Mat Min Mat Min Exi Min Mat Gar Mat Fac Was Fac Low Low Zio Pro Fac Was Fac Ext Cet Arc Hub Fac Was Fac Upp Upp War Pro Fac Was Distress Signals 29 | . 1 . 2 . . . 4 . 1 2 . 2 . . . . 4 . . . 1 . 3 3 . 5 . . . . 1 . Communications Jammed . | . . . . . . . . . . . . . . . . . . . . . . . . . . . . . . . . . Distress Signals . | . . . . . . . . . . . . . . . . . . . . . . . . . . . . . . . . . Times Spotted 578 | . 29 . 49 9 . 18 62 13 46 41 6 24 4 5 . 17 39 4 20 27 5 3 15 33 1 39 12 13 4 4 30 6 Peak Tracking Total 13 | . 7 . 5 2 . 4 5 5 5 6 6 5 4 3 . 7 8 4 7 8 5 3 8 9 1 6 5 13 4 5 5 6 Tactical Retreats 91 | . 1 . 2 2 . 1 5 . 1 6 . 11 . . . 1 10 . 7 4 . . 3 11 . 14 3 1 . . 8 . Traps | -11 -10 -10 -9 -9 -9 -8 -8 -8 -8 -7 -7 -7 -7 -7 -7 -6 -6 -6 -6 -6 -6 -6 -6 -5 -5 -5 -5 -5 -5 -4 -4 -4 ------- Run | Yrd Mat Min Mat Min Exi Min Mat Gar Mat Fac Was Fac Low Low Zio Pro Fac Was Fac Ext Cet Arc Hub Fac Was Fac Upp Upp War Pro Fac Was Traps Triggered 31 | . 1 . 1 . . . . 8 2 5 . 2 . . . . 3 . 1 . . . 2 2 . 1 . . . . 3 . Indirectly 1 | . . . . . . . . . . . . . . . . . . . . . . . 1 . . . . . . . . . Trap Hack Attempts 124 | . 82 . . . . . . . . 4 . . . . . . . . 27 . . . . . . 11 . . . . . . Triggered . | . . . . . . . . . . . . . . . . . . . . . . . . . . . . . . . . . Disarmed 2 | . . . . . . . . . . . . . . . . . . . . . . . . . . 2 . . . . . . Reprogrammed 36 | . 4 . 6 . . . . . . 8 . . . . . . . . 9 . . . . 6 . 3 . . . . . . Reused 19 | . . . 1 . . . . . . 2 . 4 . . . . . . 2 . . . . 5 . 3 . . . . 2 . Traps Extracted 23 | . 4 . . . . . . . . 4 . . . . . . . . 9 . . . . . . 3 2 1 . . . . Installed 19 | . . . . . . . . . . 4 . 4 . . . . . . 2 . . . . 3 . 3 . . . . 3 . Triggered 24 | . . . 1 . . . . . . 2 . 4 1 1 . 1 . . 2 . . . . 5 . 4 . . 1 . 2 . Most Traps Carried 5 | . 4 4 4 4 4 4 4 4 4 4 4 4 . . . . . . 5 3 3 3 3 3 . 3 2 3 3 3 3 . Machines | -11 -10 -10 -9 -9 -9 -8 -8 -8 -8 -7 -7 -7 -7 -7 -7 -6 -6 -6 -6 -6 -6 -6 -6 -5 -5 -5 -5 -5 -5 -4 -4 -4 ---------- Run | Yrd Mat Min Mat Min Exi Min Mat Gar Mat Fac Was Fac Low Low Zio Pro Fac Was Fac Ext Cet Arc Hub Fac Was Fac Upp Upp War Pro Fac Was Machines Disabled 54 | . . . 3 . . 5 5 1 . . . . . . . . . . . 2 . 1 30 4 . 1 . . 2 . . . Max in Single Turn 22 | . . . 1 . . 2 2 1 . . . . . . . . . . . 2 . 1 22 2 . 1 . . 1 . . . Garrison Access 24 | . . . . . . . . . . 3 . 2 . . . . 4 . 3 . . . 1 4 . 4 . . . . 3 . Network Hub 3 | . . . . . . . . . . . . . . . . . . . . . . . 3 . . . . . . . . . Machines Repaired . | . . . . . . . . . . . . . . . . . . . . . . . . . . . . . . . . . Machines Dismantled . | . . . . . . . . . . . . . . . . . . . . . . . . . . . . . . . . . Machines Sabotaged . | . . . . . . . . . . . . . . . . . . . . . . . . . . . . . . . . . Overloaded Fab Kills . | . . . . . . . . . . . . . . . . . . . . . . . . . . . . . . . . . Hacking | -11 -10 -10 -9 -9 -9 -8 -8 -8 -8 -7 -7 -7 -7 -7 -7 -6 -6 -6 -6 -6 -6 -6 -6 -5 -5 -5 -5 -5 -5 -4 -4 -4 --------- Run | Yrd Mat Min Mat Min Exi Min Mat Gar Mat Fac Was Fac Low Low Zio Pro Fac Was Fac Ext Cet Arc Hub Fac Was Fac Upp Upp War Pro Fac Was Machines Accessed 284 | . 10 . 16 . 2 . 15 4 9 29 . 22 . . . 1 33 . 27 9 1 . 11 31 . 37 1 2 1 . 23 . Terminals 154 | . 7 . 11 . . . 9 4 6 15 . 11 . . . 1 16 . 12 8 1 . 10 13 . 16 1 1 . . 12 . Fabricators 29 | . . . . . . . . . . 2 . 2 . . . . 5 . 6 . . . . 5 . 6 . . . . 3 . Repair Stations 29 | . 1 . 2 . . . 2 . 1 3 . 2 . . . . 5 . 4 . . . . 3 . 4 . . . . 2 . Recycling Units 34 | . 2 . 2 . . . 1 . 1 5 . 4 . . . . 3 . 2 1 . . . 5 . 6 . . . . 2 . Scanalyzers 9 | . . . 1 . . . 2 . 1 1 . 1 . . . . . . . . . . . 1 . 1 . . . . 1 . Garrison Access 25 | . . . . . . . 1 . . 3 . 2 . . . . 4 . 3 . . . 1 4 . 4 . . . . 3 . Total Hacks 946 | . 27 . 48 . 5 . 41 11 31 81 . 59 . . . 5 93 . 83 19 1 . 31 157 . 166 1 6 1 . 80 . Successful 705 | . 12 . 31 . 5 . 21 4 19 65 . 40 . . . 5 66 . 68 16 1 . 17 118 . 135 1 6 1 . 74 . Failed 236 | . 14 . 16 . . . 19 7 12 16 . 19 . . . . 26 . 15 3 . . 14 38 . 31 . . . . 6 . Catastrophic 25 | . 2 . 2 . . . 2 2 . 3 . 2 . . . . 2 . 1 1 . . 1 5 . 2 . . . . . . Database Lockouts 5 | . 1 . 1 . . . 1 . . . . . . . . . 1 . . . . . . 1 . . . . . . . . Manual 445 | . 21 . 24 . 1 . 29 5 18 25 . 28 . . . . 35 . 44 7 . . 22 71 . 85 . . 1 . 29 . Terminals 528 | . 22 . 25 . . . 28 11 22 46 . 31 . . . 5 40 . 42 16 1 . 27 78 . 88 1 5 . . 40 . Fabricators 112 | . . . . . . . . . . 7 . 4 . . . . 17 . 17 . . . . 23 . 31 . . . . 13 . Repair Stations 145 | . 3 . 14 . . . 6 . 4 10 . 7 . . . . 21 . 16 . . . . 25 . 23 . . . . 16 . Recycling Units 75 | . 2 . 3 . . . 2 . 1 10 . 10 . . . . 7 . 5 3 . . . 12 . 14 . . . . 6 . Scanalyzers 43 | . . . 6 . . . 4 . 4 3 . 5 . . . . . . . . . . . 15 . 5 . . . . 1 . Garrison Access 36 | . . . . . . . 1 . . 5 . 2 . . . . 8 . 3 . . . 4 4 . 5 . . . . 4 . Terminal Hacks 256 | . 6 . 7 . 5 . 9 3 10 22 . 9 . . . 5 13 . 23 9 1 . 11 39 . 50 1 6 1 . 26 . Record 17 | . . . . . 4 . . . . . . . . . . 5 . . . . 1 . . . . . 1 5 . . 1 . Part Schematic 15 | . . . . . . . . . . 3 . . . . . . 1 . 1 . . . . 6 . 2 . . . . 2 . Robot Analysis 9 | . 2 . 1 . . . 4 . 1 . . . . . . . . . . . . . . . . . . . . . 1 . Prototype ID Bank 21 | . 4 . . . . . . . . 2 . 1 . . . . 1 . 1 . . . . 1 . 5 . . . . 6 . Open Door 8 | . . . . . . . . . . . . . . . . . . . 1 5 . . . . . . . 1 1 . . . Level Access Points 2 | . . . . . . . . . . . . . . . . . . . . . . . . 1 . 1 . . . . . . Branch Access Points 6 | . . . . . . . . . . 1 . 1 . . . . . . 1 1 . . . . . 1 . . . . 1 . Emergency Access Points 2 | . . . 1 . . . . 1 . . . . . . . . . . . . . . . . . . . . . . . . Machine Index 6 | . . . . . . . . . . 1 . 1 . . . . 1 . 1 . . . . 1 . 1 . . . . . . Terminal Index 4 | . . . . . . . . . . 1 . 1 . . . . 1 . . . . . . 1 . . . . . . . . Alert Level 19 | . . . 1 . . . 2 . 2 1 . . . . . . 2 . 1 1 . . . 4 . 4 . . . . 1 . Unreport Threat 30 | . . . . . . . 2 . 4 5 . . . . . . 2 . 2 . . . . 7 . 7 . . . . 1 . Locate Traps 18 | . . . 1 . . . . . 1 . . . . . . . 1 . 1 . . . 4 3 . 4 . . . . 3 . Reprogram Traps 3 | . . . 1 . . . . . . 1 . . . . . . . . . . . . . 1 . . . . . . . . Surveillance Status 1 | . . . . . . . . . . . . . . . . . . . . . . . . . . 1 . . . . . . Patrol Status 9 | . . . . . . . . . . . . 1 . . . . 1 . 1 . . . . 1 . 3 . . . . 2 . Investigation Status 1 | . . . . . . . . . . . . . . . . . . . 1 . . . . . . . . . . . . . Extermination Status 1 | . . . . . . . . . . . . . . . . . . . 1 . . . . . . . . . . . . . Assault Status 2 | . . . . . . . . . . . . . . . . . . . 1 . . . . . . 1 . . . . . . Recall Investigation 22 | . . . 1 . . . . . . 3 . . . . . . . . 7 . . . 1 3 . 7 . . . . . . Recall Extermination 14 | . . . . . . . . . . 2 . 1 . . . . 2 . 1 . . . . 3 . 2 . . . . 3 . Recall Reinforcements 16 | . . . . . . . . . . 1 . 2 . . . . . . . . . . 2 . . 7 . . . . 4 . Recall Assault 3 | . . . . . . . . . . . . . . . . . . . 1 . . . . . . 2 . . . . . . Hauler Manifests 9 | . . . 1 . . . 1 . 1 . . 1 . . . . 1 . . . . . . 2 . 1 . . . . 1 . Registered Prototypes 1 | . . . . . . . . . . 1 . . . . . . . . . . . . . . . . . . . . . . Zone Layout 14 | . . . . . . . . . 1 . . . . . . . . . 1 2 . . 4 5 . 1 . . . . . . Patrol Navigation 1 | . . . . . . . . 1 . . . . . . . . . . . . . . . . . . . . . . . . Security Stations 1 | . . . . . . . . 1 . . . . . . . . . . . . . . . . . . . . . . . . Derelict Proto ID Bank 1 | . . . . . 1 . . . . . . . . . . . . . . . . . . . . . . . . . . . Fabricator Hacks 63 | . . . . . . . . . . 4 . 4 . . . . 13 . 10 . . . . 11 . 15 . . . . 6 . Network Status 4 | . . . . . . . . . . . . . . . . . 1 . . . . . . 1 . 1 . . . . 1 . Load Schematic 29 | . . . . . . . . . . 2 . 2 . . . . 6 . 5 . . . . 5 . 7 . . . . 2 . Build 30 | . . . . . . . . . . 2 . 2 . . . . 6 . 5 . . . . 5 . 7 . . . . 3 . Repair Station Hacks 127 | . 2 . 12 . . . 4 . 2 10 . 6 . . . . 18 . 14 . . . . 21 . 22 . . . . 16 . Scan Component 65 | . 1 . 6 . . . 2 . 1 5 . 3 . . . . 10 . 7 . . . . 11 . 11 . . . . 8 . Repair 62 | . 1 . 6 . . . 2 . 1 5 . 3 . . . . 8 . 7 . . . . 10 . 11 . . . . 8 . Recycling Unit Hacks 30 | . . . . . . . 1 . . 4 . 4 . . . . 3 . 2 1 . . . 6 . 6 . . . . 3 . Retrieve Components 30 | . . . . . . . 1 . . 4 . 4 . . . . 3 . 2 1 . . . 6 . 6 . . . . 3 . Scanalyzer 41 | . . . 6 . . . 2 . 4 3 . 5 . . . . . . . . . . . 15 . 5 . . . . 1 . Insert Component 14 | . . . 3 . . . 1 . 2 1 . 2 . . . . . . . . . . . 2 . 2 . . . . 1 . Analyze 27 | . . . 3 . . . 1 . 2 2 . 3 . . . . . . . . . . . 13 . 3 . . . . . . Garrison Access Hacks 24 | . . . . . . . 1 . . 2 . 2 . . . . 4 . 3 . . . 1 4 . 4 . . . . 3 . Unlock Access 1 | . . . . . . . 1 . . . . . . . . . . . . . . . . . . . . . . . . . Seal Access 23 | . . . . . . . . . . 2 . 2 . . . . 4 . 3 . . . 1 4 . 4 . . . . 3 . Unauthorized Hacks 164 | . 4 . 6 . . . 4 1 3 20 . 10 . . . . 15 . 16 6 . . 5 22 . 33 . . . . 19 . Terminals 86 | . 2 . 4 . . . 3 1 2 11 . 8 . . . . 12 . 7 5 . . 5 6 . 10 . . . . 10 . Track 3 | . . . . . . . . . . . . . . . . . . . . 1 . . . 1 . . . . . . 1 . Assimilate 28 | . . . 1 . . . 1 . . 5 . 1 . . . . 7 . 2 1 . . 2 2 . 4 . . . . 2 . Botnet 45 | . 1 . 2 . . . 2 . 2 6 . 6 . . . . 5 . 4 1 . . 3 2 . 5 . . . . 6 . Disrupt 1 | . . . . . . . . . . . . . . . . . . . . 1 . . . . . . . . . . . . Operators 8 | . 1 . 1 . . . . . . . . 1 . . . . . . 1 1 . . . 1 . 1 . . . . 1 . Override 1 | . . . . . . . . 1 . . . . . . . . . . . . . . . . . . . . . . . . Fabricators 42 | . . . . . . . . . . 3 . . . . . . 1 . 7 . . . . 10 . 15 . . . . 6 . Report 5 | . . . . . . . . . . . . . . . . . . . 1 . . . . 1 . 2 . . . . 1 . Prioritize 14 | . . . . . . . . . . . . . . . . . 1 . 1 . . . . 4 . 6 . . . . 2 . Liberate 18 | . . . . . . . . . . 2 . . . . . . . . 4 . . . . 4 . 6 . . . . 2 . Haulers 5 | . . . . . . . . . . 1 . . . . . . . . 1 . . . . 1 . 1 . . . . 1 . Repair Stations . | . . . . . . . . . . . . . . . . . . . . . . . . . . . . . . . . . Recycling Units 35 | . 2 . 2 . . . 1 . 1 5 . 2 . . . . 2 . 2 1 . . . 6 . 8 . . . . 3 . Monitor 1 | . . . . . . . . . . . . . . . . . . . . . . . . 1 . . . . . . . . Reject 23 | . . . . . . . 1 . . 2 . 2 . . . . 2 . 2 1 . . . 5 . 6 . . . . 2 . Recyclers 1 | . . . . . . . . . . 1 . . . . . . . . . . . . . . . . . . . . . . Mask 5 | . . . . . . . . . . 2 . . . . . . . . . . . . . . . 2 . . . . 1 . Tunnel 5 | . 2 . 2 . . . . . 1 . . . . . . . . . . . . . . . . . . . . . . . Scanalyzers . | . . . . . . . . . . . . . . . . . . . . . . . . . . . . . . . . . Garrison Access 1 | . . . . . . . . . . 1 . . . . . . . . . . . . . . . . . . . . . . Jam 1 | . . . . . . . . . . 1 . . . . . . . . . . . . . . . . . . . . . . Data Cores Recovered 1 | . . . . . . . . . . 1 . . . . . . . . . . . . . . . . . . . . . . Used . | . . . . . . . . . . . . . . . . . . . . . . . . . . . . . . . . . Hacking Detections 187 | . 8 . 13 . . . 11 4 8 21 . 16 . . . 1 25 . 18 6 . . 9 17 . 21 1 . . . 8 . Full Trace Events 54 | . 3 . 2 . . . 2 2 3 6 . 6 . . . 1 6 . 7 . . . 1 7 . 6 . . . . 2 . Feedback Events 4 | . . . . . . . . . . 1 . 1 . . . . . . 1 . . . . 1 . . . . . . . . Corruption 1 | . . . . . . . . . . . . . . . . . . . 1 . . . . . . . . . . . . . Hackware Fried 3 | . . . . . . . . . . 1 . 1 . . . . . . . . . . . 1 . . . . . . . . Feedback Blocked . | . . . . . . . . . . . . . . . . . . . . . . . . . . . . . . . . . Robot Schematics Acquired . | . . . . . . . . . . . . . . . . . . . . . . . . . . . . . . . . . Robots Built . | . . . . . . . . . . . . . . . . . . . . . . . . . . . . . . . . . Authchips . | . . . . . . . . . . . . . . . . . . . . . . . . . . . . . . . . . Time . | . . . . . . . . . . . . . . . . . . . . . . . . . . . . . . . . . Total Robot Build Rating . | . . . . . . . . . . . . . . . . . . . . . . . . . . . . . . . . . Part Schematics Acquired 28 | . . . 3 . . . 1 . 2 4 . 2 . . . . 1 . 1 . . . . 8 . 4 . . . . 2 . Parts Built 33 | . . . . . . . . . . 3 . 2 . . . . 6 . 5 . . . . 5 . 8 . . . . 4 . Authchips 2 | . . . . . . . . . . . . . . . . . 1 . . . . . . . . 1 . . . . . . Time 1970 | . . . . . . . . . . 240 . 97 . . . . 310 . 378 . . . . 340 . 496 . . . . 109 . Total Part Build Rating 202 | . . . . . . . . . . 16 . 6 . . . . 32 . 30 . . . . 31 . 56 . . . . 31 . Parts Repaired 62 | . 1 . 6 . . . 2 . 1 5 . 3 . . . . 8 . 7 . . . . 10 . 11 . . . . 8 . Time 2955 | . 26 . 189 . . . 58 . 19 330 . 136 . . . . 501 . 284 . . . . 553 . 405 . . . . 454 . Parts Recycled . | . . . . . . . . . . . . . . . . . . . . . . . . . . . . . . . . . Recycled Matter . | . . . . . . . . . . . . . . . . . . . . . . . . . . . . . . . . . Retrieved Matter . | . . . . . . . . . . . . . . . . . . . . . . . . . . . . . . . . . Retrieved Components 91 | . . . . . . . 9 . . 18 . 4 . . . . 3 . 12 10 . . . 7 . 16 . . . . 12 . Parts Scanalyzed 13 | . . . 3 . . . 1 . 2 1 . 2 . . . . . . . . . . . 2 . 2 . . . . . . Part Schematics Acquired 13 | . . . 3 . . . 1 . 2 1 . 2 . . . . . . . . . . . 2 . 2 . . . . . . Parts Damaged 3 | . . . . . . . . . 1 . . 1 . . . . . . . . . . . . . 1 . . . . . . Bothacking | -11 -10 -10 -9 -9 -9 -8 -8 -8 -8 -7 -7 -7 -7 -7 -7 -6 -6 -6 -6 -6 -6 -6 -6 -5 -5 -5 -5 -5 -5 -4 -4 -4 ------------ Run | Yrd Mat Min Mat Min Exi Min Mat Gar Mat Fac Was Fac Low Low Zio Pro Fac Was Fac Ext Cet Arc Hub Fac Was Fac Upp Upp War Pro Fac Was Used RIF Installer . | . . . . . . . . . . . . . . . . . . . . . . . . . . . . . . . . . Robots Hacked 5 | . . . . . . . . . . 1 . . . . . . 2 . . . . . . 1 . . . . . . 1 . Non-combat 5 | . . . . . . . . . . 1 . . . . . . 2 . . . . . . 1 . . . . . . 1 . Combat . | . . . . . . . . . . . . . . . . . . . . . . . . . . . . . . . . . Robot Hacks Applied 5 | . . . . . . . . . . 1 . . . . . . 2 . . . . . . 1 . . . . . . 1 . no_distress 1 | . . . . . . . . . . . . . . . . . 1 . . . . . . . . . . . . . . . find_chute 4 | . . . . . . . . . . 1 . . . . . . 1 . . . . . . 1 . . . . . . 1 . Relay Couplers Released 4 | . . . . . . . . 3 . . . . . . . . . . . . . . . . . . . . . . 1 . Machine Destruction 1 | . . . . . . . . . . . . . . . . . . . . . . . . . . . . . . . 1 . Programmers 3 | . . . . . . . . 3 . . . . . . . . . . . . . . . . . . . . . . . . Fabnet Peak Effective % . | . . . . . . . . . . . . . . . . . . . . . . . . . . . . . . . . . Robots Rewired 14 | . . . . . . . . . . . . . . . . . . . . 14 . . . . . . . . . . . . Allies Hacked 1 | . . . . . . . . . . . . . . . . . . . . . . . . . . 1 . . . . . . Hacks Repelled . | . . . . . . . . . . . . . . . . . . . . . . . . . . . . . . . . . Allies | -11 -10 -10 -9 -9 -9 -8 -8 -8 -8 -7 -7 -7 -7 -7 -7 -6 -6 -6 -6 -6 -6 -6 -6 -5 -5 -5 -5 -5 -5 -4 -4 -4 -------- Run | Yrd Mat Min Mat Min Exi Min Mat Gar Mat Fac Was Fac Low Low Zio Pro Fac Was Fac Ext Cet Arc Hub Fac Was Fac Upp Upp War Pro Fac Was Total Allies 85 | . . 3 . . . . . . . 8 1 1 . . 4 . 7 . 7 21 . . 1 2 20 8 . . . . 2 . Largest Group 20 | . . 3 3 . . . . . . 4 1 1 . . 4 4 3 . 3 9 5 . 1 1 20 18 . . . . 2 . Highest-Rated Group 705 | . . 40 40 . . . . . . 64 31 10 . . 104 104 78 . 90 319 130 . 26 26 705 605 . . . . 36 . Highest-Rated Ally 159 | . . 16 16 . . . . . . 32 31 10 . . 28 28 26 . 32 159 34 . 26 26 50 49 . . . . 26 . Total Orders 12 | . . . . . . . . . . . . 2 . . . . 2 . 3 . . . . . . . . . 1 . 4 . STAY 7 | . . . . . . . . . . . . 1 . . . . 1 . 2 . . . . . . . . . . . 3 . ROAM 1 | . . . . . . . . . . . . . . . . . . . . . . . . . . . . . 1 . . . FOLLOW 4 | . . . . . . . . . . . . 1 . . . . 1 . 1 . . . . . . . . . . . 1 . Ally Attacks 289 | . . . 25 . . . . . . 3 8 . . . . 12 . . 4 129 10 . . . 23 75 . . . . . . Total Damage 5637 | . . . 299 . . . . . . 13 168 . . . . 183 . . 82 2684 213 . . . 599 1396 . . . . . . Kills 38 | . . . 6 . . . . . . . . . . . . 3 . . . 18 1 . . . 1 9 . . . . . . Allies Corrupted . | . . . . . . . . . . . . . . . . . . . . . . . . . . . . . . . . . Allies Melted 1 | . . . . . . . . . . . . . . . . . . . . . . . . . . 1 . . . . . . Intel | -11 -10 -10 -9 -9 -9 -8 -8 -8 -8 -7 -7 -7 -7 -7 -7 -6 -6 -6 -6 -6 -6 -6 -6 -5 -5 -5 -5 -5 -5 -4 -4 -4 ------- Run | Yrd Mat Min Mat Min Exi Min Mat Gar Mat Fac Was Fac Low Low Zio Pro Fac Was Fac Ext Cet Arc Hub Fac Was Fac Upp Upp War Pro Fac Was Robot Analysis Total 9 | . 2 . 1 . . . 4 . 1 . . . . . . . . . . . . . . . . . . . . . 1 . Derelict Logs Recovered 14 | . . 1 . 1 . . . . . . . . 3 1 3 1 . . . . . . . . . . 1 1 . 2 . . Drone Launches 91 | . . . . . . . . . . . . . . . . . . . . . . . . . . . . . 91 . . . Drone Recoveries 11 | . . . . . . . . . . . . . . . . . . . . . . . . . . . . . 11 . . . Decoded 0b10 Intel 82 | . . . . . . . . . . . . . . . . . 82 . . . . . . . . . . . . . . . Items 82 | . . . . . . . . . . . . . . . . . 82 . . . . . . . . . . . . . . . Exploration | -11 -10 -10 -9 -9 -9 -8 -8 -8 -8 -7 -7 -7 -7 -7 -7 -6 -6 -6 -6 -6 -6 -6 -6 -5 -5 -5 -5 -5 -5 -4 -4 -4 ------------- Run | Yrd Mat Min Mat Min Exi Min Mat Gar Mat Fac Was Fac Low Low Zio Pro Fac Was Fac Ext Cet Arc Hub Fac Was Fac Upp Upp War Pro Fac Was Turns Passed 40011 | 59 1850 887 3829 1314 656 1390 5326 1686 2775 2379 34 1458 166 122 870 142 2152 25 1919 2007 64 54 405 2034 89 3115 254 177 563 171 1870 169 Spaces Moved 47083 | 34 809 551 1435 522 273 526 1743 610 848 4522 130 2915 535 367 1088 387 4333 103 4023 1950 118 44 833 3618 244 7233 614 515 915 468 4508 269 Core 161 | 3 . . . . . . . . . . . . . . . . . . . 81 . . 8 . . . . . . . . 69 Treads 7474 | 31 809 551 1435 522 273 526 1743 610 848 126 . . . . . . . . . . . . . . . . . . . . . . Legs . | . . . . . . . . . . . . . . . . . . . . . . . . . . . . . . . . . Wheels . | . . . . . . . . . . . . . . . . . . . . . . . . . . . . . . . . . Hover . | . . . . . . . . . . . . . . . . . . . . . . . . . . . . . . . . . Flight 39448 | . . . . . . . . . . 4396 130 2915 535 367 1088 387 4333 103 4023 1869 118 44 825 3618 244 7233 614 515 915 468 4508 200 Fastest Speed 5 | 50 160 160 160 240 240 240 240 246 246 23 26 14 26 17 26 14 11 23 11 5 5 23 14 11 23 23 16 16 25 5 5 19 Average Speed 58 | 150 160 160 225 240 240 240 244 246 246 32 26 28 26 26 68 25 24 23 23 40 20 23 27 20 23 23 24 24 42 25 24 32 Slowest Speed 560 | 160 160 160 400 240 240 240 560 246 246 246 26 91 26 91 91 26 94 23 91 450 23 23 500 89 23 90 90 90 93 90 89 100 Overloaded Moves 508 | . . . . . . . . . . 45 . 3 . 7 . 10 17 . 21 13 19 . 38 37 . . 25 23 . 7 231 12 Propulsion Burnouts . | . . . . . . . . . . . . . . . . . . . . . . . . . . . . . . . . . Robots Hopped 183 | . . . . . . . . . . 4 . 5 . . . . 51 . 22 18 1 . 13 11 . 27 1 . 21 1 8 . Cave-ins Triggered . | . . . . . . . . . . . . . . . . . . . . . . . . . . . . . . . . . Exploration Rate (%) 75 | 3 98 89 95 95 70 93 99 64 64 73 92 61 73 63 84 55 75 81 59 97 61 59 73 72 88 91 71 57 95 58 78 97 Regions Visited 32 Branch Regions 16 Pre-discovered Areas 12 | . 2 1 2 1 1 . . . 1 . . . 2 . 1 . . . . . . . . . . . . . . 1 . . Known Exits Taken 9 | . . . . . . . 1 . . . . 1 1 . . 1 . . 1 1 . . 1 . . 1 . . . 1 . . Unknown Exits Taken 15 | 1 1 1 1 1 1 1 . . 1 . . . . 1 1 . . . . . 1 1 . . . . 1 1 1 . . . Scrap Searched 20 | . . 1 . 1 . 1 . . . . . . 2 1 5 3 . . . . . . . . . . 3 2 . 1 . . Spaces Dug 413 | . . . . . . . 15 . . 47 . 30 1 . . . 50 . 71 10 . 2 22 50 . 57 1 3 6 . 46 2 Terrain Destroyed 2006 | . . . . 163 . 143 94 20 7 121 . 32 1 94 . 7 52 . 73 77 . 2 463 104 . 183 132 3 7 142 84 2 Melee 283 | . . . . . . . . . . 39 . 25 1 . . . 41 . 38 2 . 2 2 20 . 57 1 3 6 . 44 2 Projectile 135 | . . . . . . 3 5 . . 7 . 7 . . . . 11 . 35 9 . . 21 34 . . . . 1 . 2 . AOE 1588 | . . . . 163 . 140 89 20 7 75 . . . 94 . 7 . . . 66 . . 440 50 . 126 131 . . 142 38 . Terrain Rammed . | . . . . . . . . . . . . . . . . . . . . . . . . . . . . . . . . . Walls Destroyed . | . . . . . . . . . . . . . . . . . . . . . . . . . . . . . . . . . Machines Disabled . | . . . . . . . . . . . . . . . . . . . . . . . . . . . . . . . . . Actions | -11 -10 -10 -9 -9 -9 -8 -8 -8 -8 -7 -7 -7 -7 -7 -7 -6 -6 -6 -6 -6 -6 -6 -6 -5 -5 -5 -5 -5 -5 -4 -4 -4 --------- Run | Yrd Mat Min Mat Min Exi Min Mat Gar Mat Fac Was Fac Low Low Zio Pro Fac Was Fac Ext Cet Arc Hub Fac Was Fac Upp Upp War Pro Fac Was Total 57394 | 39 1202 555 1853 554 275 603 2551 731 1437 5274 129 3442 560 380 1214 419 5235 104 4818 3096 155 67 956 4789 266 8393 692 554 1060 510 5134 347 Wait 7788 | . 186 1 253 9 . 45 545 43 450 501 . 407 20 . 119 24 783 . 566 1046 38 10 82 970 13 955 48 32 102 26 470 44 Move 46714 | 33 808 550 1434 521 272 525 1743 609 847 4514 129 2904 534 366 1087 386 4237 102 3982 1916 115 43 808 3597 243 7178 611 514 880 465 4492 269 Hop 159 | . . . . . . . . . . 4 . 5 . . . . 45 . 18 15 1 . 11 10 . 27 1 . 13 1 8 . Pick Up 150 | . 12 1 12 3 1 . 23 3 7 16 . 4 . . 1 . 8 1 10 3 . . 2 9 1 10 3 . 4 . 12 4 Fast Attach 156 | 6 2 . 10 . . . 13 2 1 30 . 6 1 . 3 . 9 . 11 1 . . 4 18 . 16 1 . 9 . 11 2 Attach 92 | . 2 . 3 . . 1 8 5 2 5 . 5 1 . . 1 5 . 3 4 . 1 2 13 . 7 3 . 4 4 13 . Detach 79 | . 2 . 1 . . . 6 . 1 8 . 5 2 . 2 1 2 . 2 2 . . 1 12 . 8 1 . 10 4 9 . Swap 254 | . 16 . 18 4 1 4 21 15 7 17 . 9 . 4 1 . 17 . 40 7 1 . 3 23 . 26 4 3 . 1 12 . Drop 208 | . 4 . 21 2 1 . 29 3 8 33 . 5 1 . 1 . 5 1 21 . . . 1 19 2 15 4 . 20 1 9 2 Fire 820 | . 83 . 95 13 . 24 157 40 106 41 . 19 . 10 . 2 17 . 57 33 . . 36 52 . 7 11 . 4 8 5 . Melee 612 | . . . . . . . . 5 . 68 . 49 1 . . 5 89 . 79 12 . 13 6 45 7 130 5 5 6 . 85 2 Ram 24 | . . . . . . . . . . . . . . . . . . . . . . . . . . . . . . . . 24 Kick . | . . . . . . . . . . . . . . . . . . . . . . . . . . . . . . . . . Crush 35 | . 5 3 6 2 . 4 6 . 8 1 . . . . . . . . . . . . . . . . . . . . . . Escape Stasis 95 | . . . . . . . . 6 . 28 . 20 . . . . 18 . . . . . . 18 . . . . . . 5 . Rewire 57 | . . . . . . . . . . . . . . . . . . . . 57 . . . . . . . . . . . . Trap 143 | . 82 . . . . . . . . 8 . 4 . . . . . . 29 . . . . 3 . 14 . . . . 3 . Miscellaneous 8 | . . . . . . . . . . . . . . . . . . . . . . . . . . . . . 8 . . . Route ------- -11/Scrapyard -10/Materials (discovered 5 exits: *Mat x3 / [*Min x2]) -10/Mines (discovered 2 exits: *Mat x2) -9/Materials (discovered 4 exits: *Mat x2 / [*Min] / [*Sto]) -9/Mines (discovered 3 exits: *Mat x2 / *Exi) -9/Exiles (discovered 2 exits: [*Min x2]) -8/Mines (discovered 2 exits: *Mat x2) -8/Materials (discovered 4 exits: *Fac x3 / Gar) -8/Garrison (discovered 3 exits: *Mat x3) -8/Materials (discovered 2 exits: *Fac x2) -7/Factory (discovered 5 exits: *Fac x3 / *Low x2) -7/Waste -7/Factory (discovered 4 exits: *Fac x2 / *Low x2) -7/Lower Caves -7/Lower Caves -7/Zion -6/Proximity Caves -6/Factory (discovered 5 exits: *Fac x2 / *Low x2 / *Ext) -6/Waste -6/Factory (discovered 6 exits: *Fac x2 / *Low x2 / *Ext x2) -6/Extension (discovered 2 exits: *Fac / *Cet) -6/Cetus -6/Archives -6/Hub_04(d) (discovered 3 exits: *Fac x3) -5/Factory (discovered 5 exits: *Fac x4 / *Upp) -5/Waste -5/Factory (discovered 6 exits: *Fac x4 / *Upp x2) -5/Upper Caves -5/Upper Caves (discovered 2 exits: *Fac / *War) -5/Warlord -4/Proximity Caves -4/Factory (discovered 6 exits: [*Res x3] / *Upp x2 / Arm) -4/Waste (discovered 1 exit: [*Fac]) History --------- Turn | Location | Event 23 | -11/Scrapyard | Discovered new exit (range 16) 60 | -11/Scrapyard | Entered Materials 307 | -10/Materials | Build established: Mutant 413 | -10/Materials | Discovered new exit (range 15) 910 | -10/Materials | Discovered new exit (range 10) 997 | -10/Materials | Repaired Lgt. Treads 1180 | -10/Materials | Discovered new exit (range 10) 1284 | -10/Materials | Central database locked down 1379 | -10/Materials | Discovered new exit (range 13) 1616 | -10/Materials | Discovered new exit (range 16) 1678 | -10/Materials | Core integrity fell below 50% 1910 | -10/Materials | Entered Mines 1950 | -10/Mines | Learned location of Zion (-7) 2034 | -10/Mines | Received a Rocket Launcher from a helpful Derelict 2299 | -10/Mines | Discovered new exit (range 6) 2366 | -10/Mines | Discovered new exit (range 9) 2667 | -10/Mines | Assisted by bots powering up and referring to "LRC-V3" 2797 | -10/Mines | Entered Materials 2797 | -9/Materials | Accompanied by 3 allies 2797 | -9/Materials | Evolved 2 slots: Utility x2 3010 | -9/Materials | Lost 3 allies 3168 | -9/Materials | Build established: Scavenger-Mutant 3930 | -9/Materials | Discovered new exit (range 5) 4058 | -9/Materials | Build established: Mutant 4098 | -9/Materials | Discovered new exit (range 12) 4541 | -9/Materials | Central database locked down 4842 | -9/Materials | Discovered new exit (range 14) 5337 | -9/Materials | Discovered new exit (range 12) 5830 | -9/Materials | Repaired Med. Armor Plating 6203 | -9/Materials | Repaired Corrupted Hacking Suite 6230 | -9/Materials | Repaired Lgt. Armor Plating 6257 | -9/Materials | Repaired Lgt. Armor Plating 6284 | -9/Materials | Repaired Lgt. Treads 6311 | -9/Materials | Repaired Lgt. Treads 6626 | -9/Materials | Entered Mines 6627 | -9/Mines | Assembled infested the area 6632 | -9/Mines | Assisted by a Guerilla fighting off Assembled 6679 | -9/Mines | Learned Materials trap positions 6815 | -9/Mines | Discovered new exit (range 11) 7081 | -9/Mines | Discovered new exit (range 7) 7216 | -9/Mines | A weapon hastily lodged in a ceiling crevice suddenly fell to the ground 7852 | -9/Mines | Found a damaged Exp. Sensor Array with a note attached 7857 | -9/Mines | Found Prototype Device 7882 | -9/Mines | Deemed a non-threat by the Exiles lab entrance 7882 | -9/Mines | Discovered new exit (range 5) 7940 | -9/Mines | Entered Exiles 7976 | -9/Exiles | Discovered new exit (range 15) 8005 | -9/Exiles | Met 8R-AWN 8041 | -9/Exiles | Met EX-HEX 8108 | -9/Exiles | Met EX-BIN 8142 | -9/Exiles | Aligned with FarCom system 8144 | -9/Exiles | Given EX-Vault access code 8202 | -9/Exiles | Opened EX-Vault 8221 | -9/Exiles | Found Cloak of Protection 8272 | -9/Exiles | Warned to stay clear of 0b10 Research branches 8414 | -9/Exiles | Met EX-DEC 8567 | -9/Exiles | Discovered new exit (range 14) 8596 | -9/Exiles | Left Exiles lab with Cloak of Protection 8596 | -9/Exiles | Entered Mines 9023 | -8/Mines | Discovered new exit (range 5) 9063 | -8/Mines | Build established: Scavenger-Mutant 9214 | -8/Mines | Discovered new exit (range 9) 9471 | -8/Mines | Core integrity fell below 50% 9986 | -8/Mines | Entered Materials 9986 | -8/Materials | Evolved 2 slots: Propulsion x1, Utility x1 9987 | -8/Materials | Loaded intel: 22 trap records 10847 | -8/Materials | Repaired Lgt. Treads 12341 | -8/Materials | Build established: Mutant 12684 | -8/Materials | Discovered new exit (range 8) 12770 | -8/Materials | Repaired Shield Generator 13908 | -8/Materials | Central database locked down 14271 | -8/Materials | Identified Exp. Sensor Array 14276 | -8/Materials | Lost 3 parts (3u) 14318 | -8/Materials | Discovered new exit (range 16) 14609 | -8/Materials | Build established: Scavenger-Mutant 15028 | -8/Materials | Discovered new exit (range 10) 15312 | -8/Materials | Identified exit to Garrison 15312 | -8/Materials | Entered Garrison 15384 | -8/Garrison | Triggered checkpoint 15450 | -8/Garrison | Learned Materials security intel 15550 | -8/Garrison | Triggered checkpoint 15676 | -8/Garrison | Triggered checkpoint 15791 | -8/Garrison | Warlord forces raided the area 15838 | -8/Garrison | Discovered new exit (range 15) 15884 | -8/Garrison | Triggered checkpoint 15938 | -8/Garrison | Triggered checkpoint 15938 | -8/Garrison | Triggered checkpoint 16085 | -8/Garrison | Discovered new exit (range 10) 16134 | -8/Garrison | Triggered checkpoint 16178 | -8/Garrison | Triggered checkpoint 16264 | -8/Garrison | Triggered checkpoint 16300 | -8/Garrison | Identified exit to Materials 16602 | -8/Garrison | Spotted B-75 Beast 16650 | -8/Garrison | Destroyed B-75 Beast 16676 | -8/Garrison | Lost 5 parts (1n4u) 16998 | -8/Garrison | Entered Materials 17237 | -8/Materials | Repaired Arm. Treads 17952 | -8/Materials | Build established: Mutant 17982 | -8/Materials | Discovered new exit (range 11) 19747 | -8/Materials | Discovered new exit (range 7) 19767 | -8/Materials | Garrison activated, responded to threat 19773 | -8/Materials | Entered Factory 19773 | -7/Factory | Evolved 2 slots: Propulsion x1, Utility x1 20173 | -7/Factory | Identified exit to Lower Caves 20379 | -7/Factory | Build established: Hacker-Sprinter 20540 | -7/Factory | Discovered new exit (range 16) 20696 | -7/Factory | Discovered new exit (range 8) 20921 | -7/Factory | Discovered new exit (range 10) 21016 | -7/Factory | Fabricated Cld. VTOL Module? 21026 | -7/Factory | Cargo convoy interrupted 21379 | -7/Factory | System Shield fried by hacking feedback 21566 | -7/Factory | Repaired Hvy. Rocket Launcher 21606 | -7/Factory | Fabricated Mic. Fission Core? 21620 | -7/Factory | Lost 4 allies 21736 | -7/Factory | Repaired Exp. Sensor Array 22017 | -7/Factory | Repaired Cld. VTOL Module 22057 | -7/Factory | Repaired Scythe 22128 | -7/Factory | Repaired Cld. VTOL Module? 22152 | -7/Factory | Manually triggered Chute Trap 22152 | -7/Factory | Sucked down chute 22152 | -7/Factory | Entered Waste 22153 | -7/Waste | Met a frightened Derelict 22161 | -7/Waste | Spotted C-40 Crusher 22163 | -7/Waste | Spotted C-40 Crusher 22163 | -7/Waste | Spotted C-40 Crusher 22164 | -7/Waste | Spotted C-40 Crusher 22165 | -7/Waste | Spotted C-40 Crusher 22167 | -7/Waste | EMP discharged 22176 | -7/Waste | Spotted C-40 Crusher 22184 | -7/Waste | Discovered new exit (range 10) 22186 | -7/Waste | Entered Factory 22307 | -7/Factory | Repaired System Restoration Module 22379 | -7/Factory | Repaired Cld. VTOL Module 22405 | -7/Factory | Hacking Suite fried by hacking feedback 22495 | -7/Factory | Discovered new exit (range 14) 22504 | -7/Factory | Discovered new exit (range 5) 22922 | -7/Factory | Repaired Mic. Nuclear Core 23183 | -7/Factory | Fabricated Hacking Suite (x1) 23206 | -7/Factory | Fabricated Hacking Suite? 23416 | -7/Factory | Cargo convoy interrupted 23644 | -7/Factory | Entered Lower Caves 23650 | -7/Lower Caves | Met a Warlord Commander 23651 | -7/Lower Caves | Learned location of Warlord (-5) 23652 | -7/Lower Caves | Warlord Commander delivered Encrypted Comm Array 23698 | -7/Lower Caves | Encountered a Warlord checkpoint 23739 | -7/Lower Caves | Learned location of 1 exit from Factory 23800 | -7/Lower Caves | Identified exit to Lower Caves 23810 | -7/Lower Caves | Entered another Lower Caves area 23906 | -7/Lower Caves | Learned Factory stockpile data 23931 | -7/Lower Caves | Discovered new exit (range 4) 23932 | -7/Lower Caves | Entered Zion 23942 | -7/Zion | Given the Hacking Drone Bay 23968 | -7/Zion | Discovered new exit (range 8) 24258 | -7/Zion | Build established: Hacker-Mutant 24626 | -7/Zion | Gained Derelict followers 24802 | -7/Zion | Entered Proximity Caves 24802 | -6/Proximity Caves | Accompanied by 4 allies 24807 | -6/Proximity Caves | Identified exit to Factory 24892 | -6/Proximity Caves | Attracted the attention of an 0b10 checkpoint 24929 | -6/Proximity Caves | Build established: Hacker-Sprinter 24939 | -6/Proximity Caves | Attracted the attention of an 0b10 base 24939 | -6/Proximity Caves | Learned Armory security intel 24939 | -6/Proximity Caves | Learned Factory security intel 24939 | -6/Proximity Caves | Learned Armory stockpile data 24944 | -6/Proximity Caves | Entered Factory 24944 | -6/Factory | Evolved 2 slots: Propulsion x1, Utility x1 24945 | -6/Factory | Identified exit to Lower Caves 24945 | -6/Factory | Identified exit to Extension 24946 | -6/Factory | Identified exit to Factory 25188 | -6/Factory | Repaired Cld. VTOL Module 25420 | -6/Factory | Discovered exit to Lower Caves (range 12) 25584 | -6/Factory | Repaired Cld. VTOL Module 25731 | -6/Factory | Discovered exit to Factory (range 16) 25784 | -6/Factory | Fabricated Cld. VTOL Module? 25990 | -6/Factory | Repaired Scythe 26069 | -6/Factory | Fabricated Adv. Hacking Suite? 26090 | -6/Factory | Fabricated Adv. Hacking Suite? 26195 | -6/Factory | Fabricated Adv. Hacking Suite? 26219 | -6/Factory | Fabricated Adv. Hacking Suite? 26231 | -6/Factory | Repaired Lgt. Fission Core 26357 | -6/Factory | Repaired Broken Hvy. Wave Gun 26435 | -6/Factory | Repaired Cld. VTOL Module 26506 | -6/Factory | Repaired Cld. VTOL Module 26686 | -6/Factory | Central database locked down 26798 | -6/Factory | Fabricated Cld. VTOL Module (x1) 27026 | -6/Factory | Repaired Cld. VTOL Module 27096 | -6/Factory | Manually triggered Chute Trap 27096 | -6/Factory | Sucked down chute 27096 | -6/Factory | Entered Waste 27099 | -6/Waste | Spotted C-40 Crusher 27107 | -6/Waste | Spotted C-40 Crusher 27109 | -6/Waste | Spotted C-40 Crusher 27109 | -6/Waste | Spotted C-40 Crusher 27111 | -6/Waste | EMP discharged 27112 | -6/Waste | Spotted C-40 Crusher 27116 | -6/Waste | Spotted C-40 Crusher 27118 | -6/Waste | Discovered new exit (range 13) 27121 | -6/Waste | Entered Factory 27165 | -6/Factory | Repaired Adv. System Restoration Module 27241 | -6/Factory | Found Prototype Processor 27241 | -6/Factory | Identified Exp. Targeting Computer 27266 | -6/Factory | Repaired Structural Scanner 27269 | -6/Factory | Discovered exit to Factory (range 15) 27328 | -6/Factory | Repaired Cld. VTOL Module? 27399 | -6/Factory | Discovered exit to Factory (range 4) 27526 | -6/Factory | Repaired Adv. System Restoration Module 27597 | -6/Factory | Repaired Cld. VTOL Module 27648 | -6/Factory | Repaired Lgt. Fission Core 28167 | -6/Factory | Fabricated Cld. Nuclear Pulse Thruster (x1) 28201 | -6/Factory | Fabricated Cld. Nuclear Pulse Thruster (x1) 28226 | -6/Factory | Fabricated Cld. Nuclear Pulse Thruster (x1) 28374 | -6/Factory | Fabricated Cld. Nuclear Pulse Thruster (x1) 28396 | -6/Factory | Build established: Wizard-Sprinter 28460 | -6/Factory | Cargo convoy interrupted 28575 | -6/Factory | Fabricated Cld. Nuclear Pulse Thruster (x1) 28683 | -6/Factory | Found Prototype Launcher 28683 | -6/Factory | Identified Tesla Bomb Launcher 28831 | -6/Factory | Repaired Mic. Nuclear Core 29040 | -6/Factory | Entered Extension 29126 | -6/Extension | Identified exit to Cetus 29283 | -6/Extension | Rescued a captive Derelict 29285 | -6/Extension | Rescued a captive Derelict 29395 | -6/Extension | Lost 4 allies 29453 | -6/Extension | Rescued A7 29701 | -6/Extension | Spotted B-75 Beast 29748 | -6/Extension | Lost 3 parts (1p1u1w) 29749 | -6/Extension | Lost 4 allies 29855 | -6/Extension | Build established: Hacker-Sprinter 29913 | -6/Extension | Rescued a captive Derelict 29915 | -6/Extension | Rescued a captive Derelict 30350 | -6/Extension | Destroyed B-75 Beast 30351 | -6/Extension | Spotted B-75 Beast 30363 | -6/Extension | Extracted ID and sensor layout for unrecognized location from A7's data core 30396 | -6/Extension | Discovered exit to Factory (range 14) 30585 | -6/Extension | Rescued a captive Derelict 30720 | -6/Extension | Build established: Hacker-Mutant 30768 | -6/Extension | Lost 4 allies 30848 | -6/Extension | Rescued a captive Derelict 31047 | -6/Extension | Entered Cetus 31047 | -6/Cetus | Accompanied by 5 allies 31077 | -6/Cetus | Spotted Cetus Guard 31077 | -6/Cetus | Spotted Cetus Guard 31079 | -6/Cetus | Spotted Cetus Guard 31092 | -6/Cetus | Spotted Cetus Guard 31107 | -6/Cetus | Discovered new exit (range 15) 31111 | -6/Cetus | Entered Archives 31125 | -6/Archives | Lost 4 allies 31134 | -6/Archives | Build established: Hacker-Sprinter 31159 | -6/Archives | Discovered new exit (range 13) 31165 | -6/Archives | Entered Hub_04(d) 31234 | -6/Hub_04(d) | Discovered exit to Factory (range 5) 31377 | -6/Hub_04(d) | Discovered exit to Factory (range 9) 31439 | -6/Hub_04(d) | Discovered exit to Factory (range 12) 31515 | -6/Hub_04(d) | Network Hub disabled 31515 | -6/Hub_04(d) | Network Hub disabled 31515 | -6/Hub_04(d) | Garrison activated, responded to threat 31530 | -6/Hub_04(d) | Network Hub disabled 31531 | -6/Hub_04(d) | Core integrity fell below 50% 31560 | -6/Hub_04(d) | Disrupted transfer network 31570 | -6/Hub_04(d) | Entered Factory 31570 | -5/Factory | Evolved 2 slots: Power x1, Propulsion x1 31651 | -5/Factory | Identified exit to Factory 31690 | -5/Factory | Fabricated Cld. Nuclear Pulse Thruster (x1) 31774 | -5/Factory | Repaired Cld. Nuclear Pulse Thruster 31864 | -5/Factory | Repaired Cld. Nuclear Pulse Thruster 31955 | -5/Factory | Repaired Cld. Nuclear Pulse Thruster 31995 | -5/Factory | Build established: Hacker-Mutant 32045 | -5/Factory | Repaired Cld. Nuclear Pulse Thruster 32099 | -5/Factory | Destroyed 10 combat bots 32185 | -5/Factory | Fabricated Adv. Hacking Suite (x1) 32252 | -5/Factory | Fabricated Cld. Nuclear Pulse Thruster (x1) 32556 | -5/Factory | Spotted B-75 Beast 32590 | -5/Factory | Adv. Hacking Suite fried by hacking feedback 32735 | -5/Factory | Fabricated Adv. Hacking Suite (x1) 32823 | -5/Factory | Repaired Hvy. Wave Gun 32930 | -5/Factory | Repaired Cld. Nuclear Pulse Thruster 32957 | -5/Factory | Repaired Lgt. Angular Momentum Engine 32977 | -5/Factory | Repaired Imp. Utility Shielding 33023 | -5/Factory | Repaired Cld. Nuclear Pulse Thruster 33063 | -5/Factory | Build established: Hacker-Sprinter 33337 | -5/Factory | Cargo convoy interrupted 33395 | -5/Factory | Found Prototype Launcher 33395 | -5/Factory | Identified Adv. Micro-nuke Launcher 33400 | -5/Factory | Found Prototype Launcher 33400 | -5/Factory | Identified Gui. Micro-nuke Launcher 33403 | -5/Factory | Found Prototype Slashing Weapon 33403 | -5/Factory | Identified Centrium Greatsword 33479 | -5/Factory | Central database locked down 33492 | -5/Factory | Discovered new exit (range 8) 33552 | -5/Factory | Fabricated Adv. Gravity Neutralizer (x1) 33577 | -5/Factory | Repaired Lgt. Fission Core 33604 | -5/Factory | Sucked down chute 33604 | -5/Factory | Entered Waste 33605 | -5/Waste | Joined by Warlord forces that had cleared the area 33632 | -5/Waste | Discovered new exit (range 16) 33640 | -5/Waste | A Compactor rumbled back to life 33640 | -5/Waste | Spotted C-40 Crusher 33693 | -5/Waste | Entered Factory 33693 | -5/Factory | Accompanied by 18 allies 33964 | -5/Factory | Discovered exit to Factory (range 11) 33972 | -5/Factory | Identified exit to Upper Caves 34020 | -5/Factory | Fabricated Exp. Hacking Suite (x1) 34061 | -5/Factory | Repaired Adv. Phase Shifter 34196 | -5/Factory | Fabricated Exp. Hacking Suite (x1) 34307 | -5/Factory | Fabricated Exp. Hacking Suite (x1) 34366 | -5/Factory | Spotted B-75 Beast 34515 | -5/Factory | Build established: Wizard-Sprinter 34706 | -5/Factory | Repaired Broken Adv. Phase Shifter 34905 | -5/Factory | Garrison activated, responded to threat 35018 | -5/Factory | Build established: Wizard-Scout 35097 | -5/Factory | Repaired Cld. Field Propulsion Drive 35132 | -5/Factory | Repaired Cld. Field Propulsion Drive 35173 | -5/Factory | Repaired Lgt. Angular Momentum Engine 35235 | -5/Factory | Repaired Cld. Nuclear Pulse Thruster 35799 | -5/Factory | Build established: Wizard-Sprinter 35933 | -5/Factory | Repaired Cld. Field Propulsion Drive 36043 | -5/Factory | Destroyed 8 combat bots 36223 | -5/Factory | Repaired Cld. Nuclear Pulse Thruster 36350 | -5/Factory | Fabricated Mic. Antimatter Reactor (x2) 36392 | -5/Factory | Fabricated Cld. Field Propulsion Drive (x1) 36435 | -5/Factory | Fabricated Exp. Utility Shielding (x1) 36496 | -5/Factory | Fabricated Cld. Field Propulsion Drive (x1) 36628 | -5/Factory | Repaired Cld. Field Propulsion Drive 36724 | -5/Factory | Repaired Cld. Nuclear Pulse Thruster 36758 | -5/Factory | Repaired Cld. Field Propulsion Drive? 36808 | -5/Factory | Entered Upper Caves 36808 | -5/Upper Caves | Spotted B-75 Beast 36816 | -5/Upper Caves | Learned Factory non-interactive machine intel 37060 | -5/Upper Caves | Discovered new exit (range 7) 37062 | -5/Upper Caves | Entered another Upper Caves area 37062 | -5/Upper Caves | Discovered exit to Factory (range 5) 37202 | -5/Upper Caves | Learned Factory interactive machine intel 37221 | -5/Upper Caves | Learned location of 1 exit from Proximity Caves 37221 | -5/Upper Caves | Learned Research terminal intel 37236 | -5/Upper Caves | Discovered new exit (range 11) 37239 | -5/Upper Caves | Entered Warlord 37337 | -5/Warlord | Found Prototype Device 37337 | -5/Warlord | Identified Minesniffer Drone Bay 37531 | -5/Warlord | Discovered new exit (range 85) 37588 | -5/Warlord | Warlord's base attacked by MAIN.C 37611 | -5/Warlord | Found Prototype Energy Gun 37611 | -5/Warlord | Identified Vortex Rail 37617 | -5/Warlord | Found Prototype Energy Gun 37617 | -5/Warlord | Identified Vortex Shotgun 37620 | -5/Warlord | Found Prototype Launcher 37620 | -5/Warlord | Identified Vortex Catalyst Activator 37627 | -5/Warlord | Found Vortex Rail 37648 | -5/Warlord | Met Warlord 37664 | -5/Warlord | Found Prototype Device 37664 | -5/Warlord | Identified Exp. Phase Shifter 37668 | -5/Warlord | Found Prototype Device 37668 | -5/Warlord | Identified Thermal Barrier 37677 | -5/Warlord | Found Prototype Hackware 37802 | -5/Warlord | Entered Proximity Caves 37859 | -4/Proximity Caves | Learned location of Testing (-2) 37906 | -4/Proximity Caves | Learned 4 Research zone layouts 37967 | -4/Proximity Caves | Attracted the attention of an 0b10 checkpoint 37973 | -4/Proximity Caves | Entered Factory 37973 | -4/Factory | Evolved 2 slots: Utility x2 37974 | -4/Factory | Loaded intel: 221 non-interactive machine locations 37975 | -4/Factory | Loaded intel: 52 interactive machine locations 37983 | -4/Factory | Discovered new exit (range 8) 38041 | -4/Factory | Found Powered Armor 38086 | -4/Factory | Repaired Cld. Field Propulsion Drive? 38127 | -4/Factory | Fabricated Exp. Melee Analysis Suite (x1) 38183 | -4/Factory | Found Exp. Melee Analysis Suite 38248 | -4/Factory | Identified Ghost Barrier 38333 | -4/Factory | Repaired Cld. Field Propulsion Drive? 38354 | -4/Factory | Fabricated Nova Cannon (x1) 38373 | -4/Factory | Repaired Structural Scanner 38418 | -4/Factory | Identified exit to Upper Caves 38418 | -4/Factory | Identified exit to Armory 38815 | -4/Factory | Discovered new exit (range 4) 38852 | -4/Factory | Spotted B-86 Titan 38970 | -4/Factory | Repaired Cld. Field Propulsion Drive 39022 | -4/Factory | Found Prototype Slashing Weapon 39022 | -4/Factory | Identified Vibroblade 39196 | -4/Factory | Spotted B-86 Titan 39343 | -4/Factory | Repaired Cld. Field Propulsion Drive 39394 | -4/Factory | Repaired Cld. Field Propulsion Drive 39444 | -4/Factory | Repaired Cld. Field Propulsion Drive 39480 | -4/Factory | Repaired Mic. Antimatter Reactor 39624 | -4/Factory | Fabricated Mic. Antimatter Reactor (x2) 39756 | -4/Factory | Discovered new exit (range 10) 39843 | -4/Factory | Sucked down chute 39843 | -4/Factory | Entered Waste 39846 | -4/Waste | Found Broken Adv. Force Booster 39858 | -4/Waste | EMP discharged 39864 | -4/Waste | Spotted C-40 Crusher 39864 | -4/Waste | Spotted C-40 Crusher 39870 | -4/Waste | Spotted C-40 Crusher 39871 | -4/Waste | Spotted C-40 Crusher 39871 | -4/Waste | Spotted C-40 Crusher 39873 | -4/Waste | Spotted C-40 Crusher 39884 | -4/Waste | Crushed by Compactor (1 part destroyed, 1 dropped) 39894 | -4/Waste | Discovered new exit (range 10) 39903 | -4/Waste | Crushed by Compactor (1 part destroyed, 1 dropped) 39906 | -4/Waste | Crushed by Compactor (1 part destroyed, 2 dropped) 39909 | -4/Waste | Crushed by Compactor (1 part destroyed, 1 dropped) 39912 | -4/Waste | Crushed by Compactor (1 part destroyed, 2 dropped) 39943 | -4/Waste | Lost 5 parts (2p2n1w) 39958 | -4/Waste | EMP discharged 39958 | -4/Waste | System corruption reached 10% 39982 | -4/Waste | Crushed by Compactor (1 part destroyed, 1 dropped) 39987 | -4/Waste | Crushed by Compactor (1 part destroyed, 2 dropped) 39990 | -4/Waste | Crushed by Compactor (1 part destroyed, 2 dropped) 39994 | -4/Waste | Core integrity fell below 50% 40006 | -4/Waste | Core integrity fell below 20% 40012 | -4/Waste | Destroyed by C-40 Crusher with Compactor Last Messages --------------- 39988_ Slammed into C-40 Crusher. 39988_ Destabilizing: System corrupted (+1). 39989_ Slammed into C-40 Crusher. 39990_ Exp. Hacking Suite crushed. 39990_ Exp. Utility Shielding crushed. 39991_ Slammed into C-40 Crusher. 39992_ Destabilizing: System corrupted (+2). 39993_ Slammed into C-40 Crusher. 39993_ Destabilizing: Core damaged (-34). 39994_ Slammed into C-40 Crusher. 39995_ System corrupted: Energy discharge (-28). 39995_ Slammed into C-40 Crusher. 40006_ 4 Matter crushed. 40006_ Slammed into C-40 Crusher. 40008_ 2 Matter crushed. 40009_ 5 Matter crushed. 40009_ Slammed into C-40 Crusher. 40011_ 4 Matter crushed. 40012_ System corrupted: Matter fused (-9). 40012_ 6 Matter crushed. Map ----- +----------------------------------------------------+ | ?????????????????????????????????????????????????? | | ?????????????????????????????????????????????????? | | ?????????????????????????????????????????????????? | | ?????????????????????????????????????????????????? | | ?????????????????????????????????????????????????? | | ?????????????????????????????????????????????????? | | ?????????????????????????????????????????????????? | | ?????????????????????????????????????????????????? | | ?????????????????????????????????????????????????? | | ?????????????????????????########????#######?????# | | ?????????????????????????########????########????# | | ?????????????????????????## ##????## ##????# | | ?????????????????????????## ##????## ##????# | | ?????????????????????????## ##????## ##????# | | ???????????????????????#### ##????## ##????# | | ???????????????????????#### ##????## ##????# | | ???????????????????????## ##????## ##????# | | ???????????????????????## ##????## ##????# | | ???????????????????????## ##????## ##????# | | ???????????????????????## ##????## ##????# | | ???????????################ ##????## ##????# | | ???????????################ ##????## ##????# | | ???????????## #### ##????## ##????# | | ???????????## #### ######## ##????# | | ???????????## #### CC ######## ##???## | | ???????????## CC!@CCCC ##???## | | ???????????## CCCCCC ##???## | | ???????????## CCCCCC ##???## | | ???????????## CC CC ##???## | | ???????????## #### ######## ##???## | | ???????????## #### ######## ##????# | | ???????????## #### ##????## ##????# | | ???????????################ ##????## ####### | | ???????????################ ##????## ####### | | ???????????????????????## ##????## | | ???????????????????????## ##????## | | ???????????????????????## ##????## | | ???????????????????????## ##????## | | ???????????????????????#### ##????## ####### | | ???????????????????????#### ##????## ####### | | ?????????????????????????## ##????## ##????# | | ???????????????????????#### ####??## ##????# | | ???????????????????????#### ####??## ##????# | | ???????????????????????## [ ##??########???? | | ???????????????????????## ##??########??## | | ???????????????????????## ##????????????## | | ???????????????????????## ##????????????## | | ???????????????????????## ##????????????## | | ???????????????????????## ##????????????## | | ???????????????????????## ##????????????## | +----------------------------------------------------+ Best States ------------- Heat Dissipation 50 Energy Generation 36 Energy Capacity 345 Matter Stores 300 Matter Capacity 300 Sight Range 16 Robot Scan Range 20 Terrain Scan Density 10 Additional Mass Support 16 Base Temperature (-) 200 Armor Coverage 600 Resistance: TH 50 Propulsion Shielding 66 Utility Shielding 90 Weapon Cycling 15 Evasion (%) 77 Targeting Accuracy 8 Recoil Reduction 3 Offensive Hacking 66 Defensive Hacking 20 Authchip Count 1 Trap Extractor Capacity 6 Item Schematics ----------------- Hacking Suite | -9/Materials | Scanalyzed Structural Scanner | -9/Materials | Scanalyzed Imp. Flight Unit | -9/Materials | Scanalyzed Cld. VTOL Module | -8/Materials | Scanalyzed Lyr. Heavy Armor Plating | -8/Materials | Scanalyzed Imp. Grenade Launcher | -8/Materials | Scanalyzed Adv. Melee Analysis Suite | -7/Factory | Hacked Imp. Utility Shielding | -7/Factory | Scanalyzed Mic. Fission Core | -7/Factory | Hacked Remote Force Field | -7/Factory | Hacked Adv. KE Penetrator | -7/Factory | Scanalyzed Hvy. Wave Gun | -7/Factory | Scanalyzed Adv. Hacking Suite | -6/Factory | Hacked Cld. Nuclear Pulse Thruster | -6/Factory | Hacked Exp. Hacking Suite | -5/Factory | Hacked Adv. Gravity Neutralizer | -5/Factory | Hacked Exp. Melee Analysis Suite | -5/Factory | Hacked Cld. Field Propulsion Drive | -5/Factory | Hacked Exp. System Shield | -5/Factory | Hacked Stasis Canceller | -5/Factory | Hacked Gui. Micro-nuke Launcher | -5/Factory | Scanalyzed Fusion Reactor | -5/Factory | Scanalyzed Mic. Antimatter Reactor | -5/Factory | Hacked Exp. Utility Shielding | -5/Factory | Hacked Adv. Phase Shifter | -5/Factory | Scanalyzed Adv. Cooling System | -5/Factory | Scanalyzed Enh. Nova Cannon | -4/Factory | Hacked Heavy Servo Lattice | -4/Factory | Hacked Robot Schematics ------------------ None Fabricated ------------ Cld. VTOL Module | x1 | -7/Factory Mic. Fission Core | x2 | -7/Factory Hacking Suite | x1 | -7/Factory Hacking Suite | x1 | -7/Factory Cld. VTOL Module | x1 | -6/Factory | Authchip Adv. Hacking Suite | x1 | -6/Factory Adv. Hacking Suite | x1 | -6/Factory Adv. Hacking Suite | x1 | -6/Factory Adv. Hacking Suite | x1 | -6/Factory Cld. VTOL Module | x1 | -6/Factory Cld. Nuclear Pulse Thruster | x1 | -6/Factory Cld. Nuclear Pulse Thruster | x1 | -6/Factory Cld. Nuclear Pulse Thruster | x1 | -6/Factory Cld. Nuclear Pulse Thruster | x1 | -6/Factory Cld. Nuclear Pulse Thruster | x1 | -6/Factory Cld. Nuclear Pulse Thruster | x1 | -5/Factory Adv. Hacking Suite | x1 | -5/Factory Cld. Nuclear Pulse Thruster | x1 | -5/Factory Adv. Hacking Suite | x1 | -5/Factory Adv. Gravity Neutralizer | x1 | -5/Factory Exp. Hacking Suite | x1 | -5/Factory Exp. Hacking Suite | x1 | -5/Factory Exp. Hacking Suite | x1 | -5/Factory Mic. Antimatter Reactor | x2 | -5/Factory | Authchip Cld. Field Propulsion Drive | x1 | -5/Factory Exp. Utility Shielding | x1 | -5/Factory Cld. Field Propulsion Drive | x1 | -5/Factory Exp. Melee Analysis Suite | x1 | -4/Factory Nova Cannon | x1 | -4/Factory | Preloaded Mic. Antimatter Reactor | x2 | -4/Factory Alien Tech Used ----------------- None Achievements -------------- Decoder Ring Challenges ------------ None Game ------ Seed SeismicLauncherPlatform Manual? 0 Play Time 06:50:10 Cumulative 260.6 hours Start 2024.03.02 @ 15:25:31 End 2024.03.03 @ 11:33:17 Sessions 3 Manual Loads 0 Difficulty Rogue Special Mode None Game No. 184 Rogue 184 Adventurer 0 Explorer 0 Win Type - Total 8 Types 5/0/1/1/0/0/0/1/0 Lore% 67 Gallery% 77 Achievement% 68 Wizard Run 0 Options --------- Layout 0 ASCII 0 Keyboard 0 Movement Numpad Keybinds 0 Fullscreen 2 Font 18/SmallcapsGlow Map View 76x50 Zoom Use 0% Tactical HUD 1 Map Filters NONE Filters NONE Steam 1 RUN: ab4fe814-2ee7-4c7d-92a0-c426bb8b78be